Workbook

Sheet 1.0 LDC Info
A1: LRAMVA Model version 1.0 © CHEC | T1: 2
A9: LDC Info
D11: Utility Name | E11: Innisfil Hydro Distribution Systems Limited
D13: Service Territory
D15: Assigned EB Number | E15: EB-2012-0139
D17: Name of Contact and Title | E17: Brenda L Pinke
D19: Phone Number | E19: 705-431-6870 Ext 262
D21: Email Address | E21: brendap@innisfilhydro.com
D23: Bridge Year | E23: 2012
D25: Test Year | E25: 2013
D27: Last Rebasing Year | E27: 2013 | F27: =IF(Test_Year-Last_Rebasing_Year>6, "Number of Years exceeds between CoS exceeds 6 years","") -> 
B29: Notes
C31: Pale green cells represent input cells.
C33: White cells contain fixed values, automatically generated values or formulae.

Sheet 2.0 Customer Classes
A1: LRAMVA Model version 1.0 © CHEC | T1: 2
A9: Customer Class & Current Tariff Sheet
A12: Customer Class Name | B12: Existing/ Proposed | C12: MSC Metric | D12: Usage Metric
A13: Residential | B13: Exisitng | C13: Customer | D13: kWh
A14: General Service < 50 kW | B14: Existing | C14: Customer | D14: kWh
A15: General Service > 50 to 4999 kW | B15: Existing | C15: Customer | D15: kW
A16: Unmetered Scattered Load | B16: Existing | C16: Connection | D16: kW
A17: Sentinel Lighting | B17: Existing | C17: Connection | D17: kWh
A18: Street Lighting | B18: Existing | C18: Connection | D18: kW
A19: other
A20: other
A21: other
A22: other

Sheet Instructions (hidden)
A1: Worksheet | B1: Notes
A2: LRAM VA Register | B2: Table 1 provides a summary of account balance history for account 1568 for each year. Amounts cleared through Rate Order are input by rate class.
A3: Approved Load Forecast | B3: Input kWh/kW savings included in most recent approved load forecast in Table 2. Table 3 will calculate dollars for LRAMVA account 1568.
A4: Carrying Charges | B4: Input most recent Board-approved rate in Table 4 as available; Cumulative carrying charges are calculated in Table 5.
A5: Rates | B5: Input approved distribution rates in Table 6 from rate orders. Only the Distribution Volumetric Rate and the Rate Rider for Application of Tax Change are used.
A6: 2011LostRev | B6: Table 7 - Input program details, report status, kWh and kW net savings from OPA 2011 Final Annual Report Data - Table 5; Input allocation % for each rate class.
A7: 2012LostRev | B7: Table 8 - Input program details, report status, kWh and kW net savings from Final Verified Annual 2012 CDM Report_Local Distribution Corporation/Table 1 - 2012 Savings & Table 2 - Adjustments due to Errors and Omissions; OPA report provided in pdf with exception of a few LDCs; Input allocation % for each rate class.
A8: 2012 Gross to Net Savings | B8: Table 9 - Retrieve the "Gross to Net Savings" report for the LDC from the OPA website: https://portal.ieso.ca - select your LDC under Community Projects/Documents/Conservation Officer - LDC Reports/Documents. NOTE: Check the values in the "Net Annual Summer Peak Demand Savings - MWh" (column O) against LDC Results for the corresponding year. Also check any prior year true-ups against the LDC True-Up report - ensure that figures reconcile to the OPA reports; Check the values in the "Net Annual Energy Savings - MWh" (column AS) against LDC Results for the corresponding year. Also check any prior year true-ups against the LDC True-Up report - ensure that figures reconcile to the OPA reports.
A9: 2013LostRev | B9: Table 10 - Input program details, report status, kWh and kW net savings from OPA 2013 Final Annual Report Data (excel format) when available; Input allocation % for each rate class.
A10: 2014LostRev | B10: Table 11 - Input program details, report status, kWh and kW net savings from OPA 2014 Final Annual Report (excel format) when available; Input allocation % for each rate class.
A11: Persistence/2011 | B11: 2011 OPA final report was provided in excel. Copy MW and GWh from Annual OPA Report - Progress Toward Targets (Tables 6 and 7_ sheet 3.1.1 Summary – LDC) in the 2011 Final Annual Report to row 7 and row 25 in Table 12 and 13 - Persistence tab. This data provides the information that LDCS require to calculate persistence for 2011 OPA Programs.
A12: Persistence/2012 | B12: Copy MW and GWh from 2012 Gross to Net Savings to Report / Progress Toward Targets to row 8 and row 26 in Table 12 and 13 - Persistence tab. This data provides the information that LDCS require to calculate persistence for 2012 OPA Programs.
A13: Persistence/2013 | B13: Copy MW and GWh from 2013 Final Annual OPA Report/Progress Toward Targets to row 9 and row 27 in Table 12 and 13 - Persistence tab when available. If the report is provided in excel format, data may be copied directly to appropriate cells in Persistence tab.
A14: Classes Billed on kW | B14: Annual Savings Methodology
A15: GS > 50 kW Initiatives excluding Demand Response 3 | B15: Apply 12 months of peak demand to the kW results in the OPA final verified CDM results to determine the annual savings.
A16: GS > 50 kW Demand Response 3 Initiative | B16: Apply 5 months of peak demand to the kW results in the OPA final verified CDM results to determine the annual savings.
B17: References:
A18: EB-2013-0148 | B18: Lakefront Utilities Inc.
B19: LUI_replySUB_BrdStaff_VECC_20140116, pages 2-3
B20: BrdStaff_SUB_Lakefront Utilities_20131218, pages 4-6
A22: EB-2012-0107 | B22: Bluewater Power Distribution Corporation
B23: dec_order_rates_Bluewater_20130425, Settlement Agreement, page 48
B24: Bluewater_appl_CoS_EDR_Ex 9_Deferral and Variance Accounts_20121022, Exhibit 9, Tab 3, Schedule 1, Attachment 2

Sheet 3.0 LRAMVA Register
A1: LRAMVA Model version 1.0 © CHEC
E6: Table 1 - LRAMVA register
A8: Verified results updated | B8: 2014
A10: Description | B10: ='2.0 Customer Classes'!$A13 -> Residential | C10: ='2.0 Customer Classes'!$A14 -> General Service < 50 kW | D10: ='2.0 Customer Classes'!$A15 -> General Service > 50 to 4999 kW | E10: ='2.0 Customer Classes'!$A16 -> Unmetered Scattered Load | F10: ='2.0 Customer Classes'!$A17 -> Sentinel Lighting | G10: ='2.0 Customer Classes'!$A18 -> Street Lighting | H10: ='2.0 Customer Classes'!$A19 -> other | I10: ='2.0 Customer Classes'!$A20 -> other | J10: ='2.0 Customer Classes'!$A21 -> other | K10: ='2.0 Customer Classes'!$A22 -> other | L10: Total
A11: 2011 CDM Forecast | B11: =-'4.0 Approved Load Forecast'!D34 -> 0 | C11: =-'4.0 Approved Load Forecast'!E34 -> 0 | D11: =-'4.0 Approved Load Forecast'!F34 -> 0 | E11: =-'4.0 Approved Load Forecast'!G34 -> 0 | F11: =-'4.0 Approved Load Forecast'!H34 -> 0 | G11: =-'4.0 Approved Load Forecast'!I34 -> 0 | H11: =-'4.0 Approved Load Forecast'!J34 -> 0 | L11: =SUM(B11:K11) -> 0 | N11: No CDM component for 2011
A12: 2011 Verified | B12: ='7.0 2011LostRev'!F47 -> 7645.7718 | C12: ='7.0 2011LostRev'!G47 -> 1264.8574 | D12: ='7.0 2011LostRev'!H47 -> 0 | E12: ='7.0 2011LostRev'!I47 -> 0 | F12: ='7.0 2011LostRev'!J47 -> 0 | G12: ='7.0 2011LostRev'!K47 -> 0 | H12: ='7.0 2011LostRev'!L47 -> 0 | L12: =SUM(B12:K12) -> 8910.6292
A13: 2011 Cleared | B13: 0 | C13: 0 | D13: 0 | E13: 0 | F13: 0 | G13: 0 | L13: 0
A14: 2011 LRAM variance | B14: =B11+B12 -> 7645.7718 | C14: =C11+C12 -> 1264.8574 | D14: 0 | E14: 0 | F14: 0 | G14: 0 | L14: 8910.6292
A15: Cummulative LRAM variance | B15: =B14 -> 7645.7718 | C15: =C14 -> 1264.8574 | D15: 0 | E15: 0 | F15: 0 | G15: 0 | L15: 8910.6292
A16: 2011 Carrying Charges | B16: =B14*'5.0 Carrying Charges'!$F$15 -> 112.3928455 | C16: =C14*'5.0 Carrying Charges'!$F$15 -> 18.59340378 | D16: =D14*'5.0 Carrying Charges'!$F$15 -> 0 | E16: =E14*'5.0 Carrying Charges'!$F$15 -> 0 | F16: =F14*'5.0 Carrying Charges'!$F$15 -> 0 | G16: =G14*'5.0 Carrying Charges'!$F$15 -> 0 | L16: =SUM(B16:K16) -> 130.9862492
A17: Cummulative carrying charges | B17: =B16 -> 112.3928455 | C17: =C16 -> 18.59340378 | D17: 0 | E17: 0 | F17: 0 | G17: 0 | H17: 0 | I17: 0 | J17: 0 | K17: 0 | L17: 130.9862492
A19: 2012 CDM Forecast | B19: =-'4.0 Approved Load Forecast'!D35 -> 0 | C19: =-'4.0 Approved Load Forecast'!E35 -> 0 | D19: =-'4.0 Approved Load Forecast'!F35 -> 0 | E19: =-'4.0 Approved Load Forecast'!G35 -> 0 | F19: =-'4.0 Approved Load Forecast'!H35 -> 0 | G19: =-'4.0 Approved Load Forecast'!I35 -> 0 | H19: =-'4.0 Approved Load Forecast'!J35 -> 0 | L19: 0 | N19: No CDM component for 2012
A20: 2012 Verified | B20: ='8.0 2012LostRev'!F63 -> 13289.63273 | C20: ='8.0 2012LostRev'!G63 -> 2380.836007 | D20: ='8.0 2012LostRev'!H63 -> 1053.67712 | E20: ='8.0 2012LostRev'!I63 -> 0 | F20: ='8.0 2012LostRev'!J63 -> 0 | G20: ='8.0 2012LostRev'!K63 -> 0 | H20: ='8.0 2012LostRev'!L63 -> 0 | L20: 16724.14586
A21: 2012 Cleared | B21: 0 | C21: 0 | D21: 0 | E21: 0 | F21: 0 | G21: 0 | L21: 0
A22: 2012 LRAM variance | B22: =B19+B20 -> 13289.63273 | C22: =C19+C20 -> 2380.836007 | D22: 1053.67712 | E22: 0 | F22: 0 | G22: 0 | L22: 16724.14586
A23: Cummulative LRAM variance | B23: =B15+B22 -> 20935.40453 | C23: =C15+C22 -> 3645.693407 | D23: 1053.67712 | E23: 0 | F23: 0 | G23: 0 | L23: 25634.77506
A24: 2012 Carrying charges | B24: =B23*'5.0 Carrying Charges'!$F$19 -> 307.7504466 | C24: =C23*'5.0 Carrying Charges'!$F$19 -> 53.59169308 | D24: =D23*'5.0 Carrying Charges'!$F$19 -> 15.48905366 | E24: =E23*'5.0 Carrying Charges'!$F$19 -> 0 | F24: =F23*'5.0 Carrying Charges'!$F$19 -> 0 | G24: =G23*'5.0 Carrying Charges'!$F$19 -> 0 | L24: 376.8311934
A25: Cummulative carrying charges | B25: =B17+B24 -> 420.1432921 | C25: =C17+C24 -> 72.18509686 | D25: 15.48905366 | E25: 0 | F25: 0 | G25: 0 | L25: 507.8174426
A27: 2013 CDM Forecast | B27: =-'4.0 Approved Load Forecast'!D36 -> -22902.5124 | C27: =-'4.0 Approved Load Forecast'!E36 -> -2207.888 | D27: =-'4.0 Approved Load Forecast'!F36 -> -7339.0445 | E27: =-'4.0 Approved Load Forecast'!G36 -> -2024.513 | F27: =-'4.0 Approved Load Forecast'!H36 -> -243.9455 | G27: =-'4.0 Approved Load Forecast'!I36 -> -2685.7028 | H27: =-'4.0 Approved Load Forecast'!J36 -> 0 | L27: -37403.6062 | N27: Refer to TAB 4.0 for 2013 Forecast Assumptions
A28: 2013 Actuals | B28: ='9.0 2013LostRev'!F70 -> 18237.8088 | C28: ='9.0 2013LostRev'!G70 -> 3974.3488 | D28: ='9.0 2013LostRev'!H70 -> 7514.7052 | E28: ='9.0 2013LostRev'!I70 -> 0 | F28: ='9.0 2013LostRev'!J70 -> 0 | G28: ='9.0 2013LostRev'!K70 -> 0 | H28: ='9.0 2013LostRev'!L70 -> 0 | L28: 29726.8628
A29: 2013 Cleared | B29: 0 | C29: 0 | D29: 0 | E29: 0 | F29: 0 | G29: 0 | L29: 0
A30: 2013 LRAM variance | B30: =B27+B28 -> -4664.7036 | C30: =C27+C28 -> 1766.4608 | D30: 175.6607 | E30: -2024.513 | F30: -243.9455 | G30: -2685.7028 | L30: =SUM(B30:K30) -> -7676.7434
A31: Cummulative LRAM variance | B31: =B23+B30 -> 16270.70093 | C31: =C23+C30 -> 5412.154207 | D31: =D23+D30 -> 1229.33782 | E31: =E23+E30 -> -2024.513 | F31: =F23+F30 -> -243.9455 | G31: =G23+G30 -> -2685.7028 | L31: 17958.03166
A32: 2013 Carrying charges | B32: =B31*'5.0 Carrying Charges'!$F$19 -> 239.1793037 | C32: =C31*'5.0 Carrying Charges'!$F$19 -> 79.55866684 | D32: =D31*'5.0 Carrying Charges'!$F$19 -> 18.07126595 | E32: =E31*'5.0 Carrying Charges'!$F$19 -> -29.7603411 | F32: =F31*'5.0 Carrying Charges'!$F$19 -> -3.58599885 | G32: =G31*'5.0 Carrying Charges'!$F$19 -> -39.47983116 | L32: 263.9830654
A33: Cummulative carrying charges | B33: =B25+B32 -> 659.3225958 | C33: =C25+C32 -> 151.7437637 | D33: =D25+D32 -> 33.56031962 | E33: =E25+E32 -> -29.7603411 | F33: =F25+F32 -> -3.58599885 | G33: =G25+G32 -> -39.47983116 | L33: 771.800508
A35: 2014 CDM Forecast | B35: =-'4.0 Approved Load Forecast'!D37 -> -23159.844 | C35: =-'4.0 Approved Load Forecast'!E37 -> -2235.4866 | D35: =-'4.0 Approved Load Forecast'!F37 -> -7441.835 | E35: =-'4.0 Approved Load Forecast'!G37 -> -2048.3308 | F35: =-'4.0 Approved Load Forecast'!H37 -> -247.3605 | G35: =-'4.0 Approved Load Forecast'!I37 -> -2723.3044 | H35: =-'4.0 Approved Load Forecast'!J37 -> 0 | L35: -37856.1613 | N35: Refer to TAB 4.0 for 2014 Forecast Assumptions
A36: 2014 Actuals | B36: ='10.0 2014LostRev'!F57 -> 30239.379 | C36: ='10.0 2014LostRev'!G57 -> 5900.26275 | D36: ='10.0 2014LostRev'!H57 -> 8771.575114 | E36: ='10.0 2014LostRev'!I57 -> 0 | F36: ='10.0 2014LostRev'!J57 -> 0 | G36: ='10.0 2014LostRev'!K57 -> 0 | H36: ='10.0 2014LostRev'!L57 -> 0 | L36: =SUM(B36:K36) -> 44911.21686
A37: 2014 Cleared | B37: 0 | C37: 0 | D37: 0 | E37: 0 | F37: 0 | G37: 0 | L37: 0
A38: 2014 LRAM variance | B38: =B35+B36 -> 7079.535 | C38: =C35+C36 -> 3664.77615 | D38: 1329.740114 | E38: -2048.3308 | F38: -247.3605 | G38: -2723.3044 | L38: 7055.055564
A39: Cummulative LRAM variance | B39: =B31+B38 -> 23350.23593 | C39: =C31+C38 -> 9076.930357 | D39: =D31+D38 -> 2559.077934 | E39: =E31+E38 -> -4072.8438 | F39: =F31+F38 -> -491.306 | G39: =G31+G38 -> -5409.0072 | L39: 25013.08722
A40: 2014 Carrying charges | B40: =B39*'5.0 Carrying Charges'!$F$19 -> 343.2484682 | C40: =C39*'5.0 Carrying Charges'!$F$19 -> 133.4308762 | D40: =D39*'5.0 Carrying Charges'!$F$19 -> 37.61844563 | E40: =E39*'5.0 Carrying Charges'!$F$19 -> -59.87080386 | F40: =F39*'5.0 Carrying Charges'!$F$19 -> -7.2221982 | G40: =G39*'5.0 Carrying Charges'!$F$19 -> -79.51240584 | L40: 367.6923822
A41: Cummulative carrying charges | B41: =B33+B40 -> 1002.571064 | C41: =C33+C40 -> 285.1746399 | D41: =D33+D40 -> 71.17876525 | E41: =E33+E40 -> -89.63114496 | F41: =F33+F40 -> -10.80819705 | G41: =G33+G40 -> -118.992237 | L41: 1139.49289
A44: Principal and Carry Chrgs | B44: =B41+B39 -> 24352.807 | C44: =C41+C39 -> 9362.104997 | D44: 2630.2567 | E44: -4162.474945 | F44: -502.114197 | G44: -5527.999437 | H44: 0 | K44: =SUM(K11:K43) -> 0 | L44: =SUM(B44:K44) -> 26152.58011
J46: Forecast for 2011- 2014 | L46: =SUM(L11+L19+L27+L35) -> -75259.7675
A47: Input amounts cleared by rate class. | J47: Actual to Date | L47: =SUM(L12+L20+L28+L36) -> 100272.8547
A48: 1 Update formula for most recent rate year | J48: Difference | L48: =SUM(L46:L47) -> 25013.08722
J49: Carrying Charges | L49: =L41 -> 1139.49289
J50: Total | L50: =SUM(L48+L49) -> 26152.58011
A54: up to Dec 2013 booked | B54: Previous Amts Booked | D54: New 1568 Amount | F54: Correction Required
A55: in financials (verified) | B55: Principal | C55: Carry Chrgs | D55: Principal | E55: Carry Chrgs | F55: Principal | G55: Carry Chrgs
A56: 2011 | B56: 14134.24 | D56: =L14 -> 8910.6292 | E56: =L16 -> 130.9862492 | F56: =D56-B56 -> -5223.6108 | G56: =E56-C56 -> 130.9862492
A57: 2012 | B57: 16028.43 | C57: 480.53 | D57: =L22 -> 16724.14586 | E57: =L24 -> 376.8311934 | F57: =D57-B57 -> 695.71586 | G57: =E57-C57 -> -103.6988066
A58: 2013 | B58: 0 | C58: 0 | D58: =L30 -> -7676.7434 | E58: =L32 -> 263.9830654 | F58: -7676.7434 | G58: 263.9830654
A59: Dec 31, 2014 GL Totals | D59: =SUM(D56:D58) -> 17958.03166 | E59: =SUM(E56:E58) -> 771.800508
D60: 1580.800 | E60: 1580.801

Sheet 4.0 Approved Load Forecast
A1: LRAMVA Model version 1.0 © CHEC
B8: CDM Targets
B10: Forecast Year
D11: kWh | E11: kW
B12: 2011 | D12: 560000 | E12: 121630
B13: 2012 | D13: 1723333 | E13: 121630
B14: 2013 | D14: 2886667 | E14: 121630
B15: 2014 | D15: 4030000 | E15: 121630
D16: =SUM(D12:D15) -> 9200000 | E16: =SUM(E12:E15) -> 486520
B18: Table 2 - Savings Due to CDM Included in Approved Load Forecast | P18: Notes & Assumptions
B20: Forecast Year | D20: ='3.0 LRAMVA Register'!B$10 -> Residential | E20: ='3.0 LRAMVA Register'!C$10 -> General Service < 50 kW | F20: ='3.0 LRAMVA Register'!D$10 -> General Service > 50 to 4999 kW | G20: ='3.0 LRAMVA Register'!E$10 -> Unmetered Scattered Load | H20: ='3.0 LRAMVA Register'!F$10 -> Sentinel Lighting | I20: ='3.0 LRAMVA Register'!G$10 -> Street Lighting | J20: ='3.0 LRAMVA Register'!H$10 -> other | K20: ='3.0 LRAMVA Register'!I$10 -> other | L20: ='3.0 LRAMVA Register'!J$10 -> other | M20: ='3.0 LRAMVA Register'!K$10 -> other | N20: ='3.0 LRAMVA Register'!L10 -> Total
D21: ='2.0 Customer Classes'!$D13 -> kWh | E21: ='2.0 Customer Classes'!$D14 -> kWh | F21: ='2.0 Customer Classes'!$D15 -> kW | G21: ='2.0 Customer Classes'!$D16 -> kW | H21: ='2.0 Customer Classes'!$D17 -> kWh | I21: ='2.0 Customer Classes'!$D18 -> kW | J21: ='2.0 Customer Classes'!$D19 -> 0 | K21: ='2.0 Customer Classes'!$D20 -> 0 | L21: ='2.0 Customer Classes'!$D21 -> 0 | M21: ='2.0 Customer Classes'!$D22 -> 0
B22: 2011 | D22: 0 | E22: 0 | F22: 0 | G22: 0 | H22: 0 | I22: 0 | J22: 0 | N22: =SUM(D22:M22) -> 0 | P22: No CDM load forecast component EB-2008-0233
B23: 2012 | D23: 0 | E23: 0 | F23: 0 | G23: 0 | H23: 0 | I23: 0 | J23: 0 | N23: =SUM(D23:M23) -> 0 | P23: No CDM load forecast component EB-2008-0233
B24: 2013 | D24: 1286658 | E24: 275986 | F24: 2465 | G24: 119089 | H24: 5 | I24: 71 | J24: =-J76 -> 0 | N24: =SUM(D24:M24) -> 1684274
B25: 2014 | D25: 1286658 | E25: 275986 | F25: 2465 | G25: 119089 | H25: 5 | I25: 71 | J25: =-J89 -> 0 | N25: =SUM(D25:M25) -> 1684274
B30: Table 3 - Forecast Loss Revenue by Class
B32: Forecast Year | D32: =D20 -> Residential | E32: General Service < 50 kW | F32: General Service > 50 to 4999 kW | G32: Unmetered Scattered Load | H32: Sentinel Lighting | I32: Street Lighting | J32: other | K32: other | L32: other | M32: other | N32: Total
D33: $ | E33: $ | F33: $ | G33: $ | H33: $ | I33: $ | J33: $ | K33: $ | L33: $ | M33: $ | N33: $
B34: 2011 | D34: =D22*'6.0 Rates'!C15 -> 0 | E34: =E22*'6.0 Rates'!C16 -> 0 | F34: =F22*'6.0 Rates'!C17 -> 0 | G34: =G22*'6.0 Rates'!C18 -> 0 | H34: =H22*'6.0 Rates'!C19 -> 0 | I34: =I22*'6.0 Rates'!C20 -> 0 | J34: =J22*'6.0 Rates'!C21 -> 0 | N34: =SUM(D34:M34) -> 0
B35: 2012 | D35: =D23*'6.0 Rates'!D15 -> 0 | E35: =E23*'6.0 Rates'!D16 -> 0 | F35: =F23*'6.0 Rates'!D17 -> 0 | G35: =G23*'6.0 Rates'!D18 -> 0 | H35: =H23*'6.0 Rates'!D19 -> 0 | I35: =I23*'6.0 Rates'!D20 -> 0 | J35: =J23*'6.0 Rates'!D21 -> 0 | N35: =SUM(D35:M35) -> 0
B36: 2013 | D36: =D24*'6.0 Rates'!E15 -> 22902.5124 | E36: =E24*'6.0 Rates'!E16 -> 2207.888 | F36: =F24*'6.0 Rates'!E17 -> 7339.0445 | G36: =G24*'6.0 Rates'!E18 -> 2024.513 | H36: =H24*'6.0 Rates'!E19 -> 243.9455 | I36: =I24*'6.0 Rates'!E20 -> 2685.7028 | J36: =J24*'6.0 Rates'!E21 -> 0 | N36: 37403.6062
B37: 2014 | D37: =D25*'6.0 Rates'!F15 -> 23159.844 | E37: =E25*'6.0 Rates'!F16 -> 2235.4866 | F37: =F25*'6.0 Rates'!F17 -> 7441.835 | G37: =G25*'6.0 Rates'!F18 -> 2048.3308 | H37: =H25*'6.0 Rates'!F19 -> 247.3605 | I37: =I25*'6.0 Rates'!F20 -> 2723.3044 | J37: =J25*'6.0 Rates'!F21 -> 0 | N37: 37856.1613
A42: CDM Adjustment as Approved in last Cost of Service
B44: 2011 | D44: =D32 -> Residential | E44: =E32 -> General Service < 50 kW | F44: General Service > 50 to 4999 kW | G44: Unmetered Scattered Load | H44: Sentinel Lighting | I44: Street Lighting | J44: other | K44: other | L44: other | M44: other | N44: Total
B46: 2011 Weather Normal Billed kWh | D46: 0 | E46: 0 | F46: 0 | G46: 0 | H46: 0 | I46: 0 | N46: =SUM(D46:M46) -> 0
B47: % of Billed | D47: =D46/$N$46 ->  | E47: =E46/$N$46 ->  | K47: =K46/$N$46 ->  | M47: =M46/$N$46 ->  | N47: =SUM(D47:M47) -> 
B48: CDM Spread kWh | D48: =-$D$12*D47 ->  | J48: =-$D$12*J47 ->  | M48: =-$D$12*M47 ->  | N48: =SUM(D48:M48) -> 
B49: Adjusted Billed kWh with CDM Applied | D49: =D46+D48 ->  | E49: =E46+E48 ->  | N49: =SUM(D49:M50) -> 
B55: 2012 | D55: =D44 -> Residential | E55: General Service < 50 kW | F55: General Service > 50 to 4999 kW | G55: Unmetered Scattered Load | H55: Sentinel Lighting | I55: Street Lighting | J55: other | K55: other | L55: other | M55: other | N55: Total
B56: kWh
B57: 2011 Weather Normal Billed kWh | D57: 0 | E57: 0 | F57: 0 | G57: 0 | H57: 0 | I57: 0 | N57: =SUM(D57:M57) -> 0
B58: % of Billed | D58: =D57/$N$46 ->  | J58: =J57/$N$57 ->  | M58: =M57/$N$57 ->  | N58: =SUM(D58:M58) -> 
B59: CDM Spread kWh | D59: =-$D$13*D58 ->  | E59: =-$D$13*E58 ->  | J59: =-$D$13*J58 ->  | M59: =-$D$13*M58 ->  | N59: =SUM(D59:M59) -> 
B60: Adjusted Billed kWh with CDM Applied | D60: =D57+D59 ->  | E60: =E57+E59 ->  | F60: =F57+F59 ->  | G60: =G57+G59 ->  | H60: =H57+H59 ->  | I60: =I57+I59 ->  | M60: =M57+M59 ->  | N60: =SUM(D60:M61) -> 
B61: kW
B62: 2012 Weather Normal Billed kW | D62: =D57*D65 -> 0 | E62: 0 | F62: 0 | G62: 0 | H62: 0 | I62: 0 | J62: =J57*J65 -> 0 | K62: 0 | L62: 0 | M62: 0 | N62: =SUM(D62:M62) -> 0
B63: CDM kW Reduction | D63: =D59*D65 ->  | F63: =F59*F65 ->  | G63: =G59*G65 ->  | J63: =J59*J65 ->  | N63: =SUM(D63:M63) -> 
B64: Adjusted Billed kWh with CDM Applied | D64: =D62+D63 ->  | F64: =F62+F63 ->  | G64: =G62+G63 ->  | J64: =J62+J63 ->  | N64: =SUM(D64:M64) -> 
B65: kWh to KW Ratio | F65: =SUM(F62/F57)*100 ->  | H65: =SUM(H62/H57)*100 ->  | I65: =SUM(I62/I57)*100 -> 
B68: 2013 | D68: =D55 -> Residential | E68: =E55 -> General Service < 50 kW | F68: General Service > 50 to 4999 kW | G68: Unmetered Scattered Load | H68: Sentinel Lighting | I68: Street Lighting | J68: other | K68: other | L68: other | M68: other | N68: Total
B69: kWh
B70: 2011 Weather Normal Billed kWh | D70: 149060361 | E70: 31973156 | F70: 51773902 | G70: 592220 | H70: 105833 | I70: 1529715 | N70: =SUM(D70:M70) -> 235035187
B71: % of Billed | D71: =D70/$N$70 -> 0.6342044479 | E71: =E70/$N$70 -> 0.1360356141 | F71: 0.2202814934 | G71: 0.002519707826 | H71: 0.0004502857693 | I71: 0.006508451009 | J71: 0 | K71: 0 | L71: 0 | M71: 0 | N71: =SUM(D71:M71) -> 1
B72: CDM Spread kWh | D72: =-$D$14*D71 -> -1830737.051 | E72: -392689.5181 | F72: -635879.3178 | G72: -7273.55743 | H72: -1299.825071 | I72: -18787.73075 | J72: =-$D$14*J71 -> 0 | K72: 0 | L72: 0 | M72: =-$D$14*M71 -> 0 | N72: =SUM(D72:M72) -> -2886667
B73: Adjusted Billed kWh with CDM Applied | D73: =D70+D72 -> 147229623.9 | E73: =E70+E72 -> 31580466.48 | F73: =F70+F72 -> 51138022.68 | G73: =G70+G72 -> 584946.4426 | H73: =H70+H72 -> 104533.1749 | I73: =I70+I72 -> 1510927.269 | J73: 0 | K73: 0 | L73: 0 | M73: =M70+M72 -> 0 | N73: =SUM(D73:M74) -> 232148520
B74: kW
B75: 2012 Weather Normal Billed kW | D75: =D70*D78 -> 0 | E75: =E70*E78 -> 0 | F75: 148945 | G75: =G70*G78 -> 0 | H75: 294 | I75: 4471 | J75: =J70*J78 -> 0 | K75: 0 | L75: 0 | M75: 0 | N75: =SUM(D75:M75) -> 153710
B76: CDM kW Reduction | D76: =D72*D78 -> 0 | E76: =E72*E78 -> 0 | F76: =F72*F78 -> -182942.4797 | G76: =G72*G78 -> 0 | H76: -379.9388682 | I76: -5219.231602 | J76: =J72*J78 -> 0 | K76: 0 | L76: 0 | M76: 0 | N76: =SUM(D76:M76) -> -188541.6502
B77: Adjusted Billed kWh with CDM Applied | D77: =D75+D76 -> 0 | E77: =E75+E76 -> 0 | F77: =F75+F76 -> -33997.47973 | G77: =G75+G76 -> 0 | H77: =H75+H76 -> -85.93886823 | I77: =I75+I76 -> -748.2316021 | J77: 0 | K77: 0 | L77: 0 | M77: 0 | N77: =SUM(D77:M77) -> -34831.6502
B78: kWh to KW Ratio | F78: 0.2877 | G78: 0 | H78: 0.2923 | I78: 0.2778
B81: 2014 | D81: =D68 -> Residential | E81: =E68 -> General Service < 50 kW | F81: General Service > 50 to 4999 kW | G81: Unmetered Scattered Load | H81: Sentinel Lighting | I81: Street Lighting | J81: other | K81: other | L81: other | M81: other | N81: Total
B82: kWh
B83: 2011 Weather Normal Billed kWh | D83: 149060361 | E83: 31973156 | F83: 51773902 | G83: 592220 | H83: 105833 | I83: 1529715 | N83: =SUM(D83:M83) -> 235035187
B84: % of Billed | D84: =D83/$N$83 -> 0.6342044479 | E84: 0.1360356141 | F84: 0.2202814934 | G84: 0.002519707826 | H84: 0.0004502857693 | I84: 0.006508451009 | J84: 0 | K84: 0 | L84: 0 | M84: 0 | N84: =SUM(D84:M84) -> 1
B85: CDM Spread kWh | D85: =-$D$15*D84 -> -2555843.925 | E85: -548223.5248 | F85: -887734.4185 | G85: -10154.42254 | H85: -1814.65165 | I85: -26229.05757 | J85: =-$D$15*J84 -> 0 | K85: 0 | L85: 0 | M85: =-$D$15*M84 -> 0 | N85: =SUM(D85:M85) -> -4030000
B86: Adjusted Billed kWh with CDM Applied | D86: =D83+D85 -> 146504517.1 | E86: =E83+E85 -> 31424932.48 | F86: =F83+F85 -> 50886167.58 | G86: =G83+G85 -> 582065.5775 | H86: =H83+H85 -> 104018.3483 | I86: =I83+I85 -> 1503485.942 | J86: 0 | K86: 0 | L86: 0 | M86: =M83+M85 -> 0 | N86: =SUM(D86:M87) -> 231005187
B87: kW
B88: 2012 Weather Normal Billed kW | D88: =D83*D91 -> 0 | E88: 0 | F88: 148945 | G88: 0 | H88: 294 | I88: 4471 | J88: =J83*J91 -> 0 | K88: 0 | L88: 0 | M88: 0 | N88: =SUM(D88:M88) -> 153710
B89: CDM kW Reduction | D89: =D85*D91 -> 0 | E89: 0 | F89: =F85*F91 -> -255401.1922 | G89: 0 | H89: =H85*H91 -> -530.4226774 | I89: 0 | J89: =J85*J91 -> 0 | K89: 0 | L89: 0 | M89: 0 | N89: =SUM(D89:M89) -> -255931.6149
B90: Adjusted Billed kWh with CDM Applied | D90: =D88+D89 -> 0 | E90: 0 | F90: =F88+F89 -> -106456.1922 | G90: 0 | H90: =H88+H89 -> -236.4226774 | I90: =I88+I89 -> 4471 | J90: 0 | K90: 0 | L90: 0 | M90: 0 | N90: =SUM(D90:M90) -> -102221.6149
B91: kWh to KW Ratio | F91: 0.2877 | G91: 0 | H91: 0.2923
B97: Assumptions

Sheet 5.0 Carrying Charges
A1: LRAMVA Model version 1.0 © CHEC
E9: Table 4 - Carrying Charges Prescribed Rates
E11: Period | F11: Board specified | G11: Estimated | H11: Used in calculations
E12: 2011 Q1 | F12: 0.0147 | H12: =IF(F12<>0,F12,G12) -> 0.0147
E13: 2011 Q2 | F13: 0.0147 | H13: =IF(F13<>0,F13,G13) -> 0.0147
E14: 2011 Q3 | F14: 0.0147 | H14: 0.0147
E15: 2011 Q4 | F15: 0.0147 | H15: 0.0147
E16: 2012 Q1 | F16: 0.0147 | H16: 0.0147
E17: 2012 Q2 | F17: 0.0147 | H17: 0.0147
E18: 2012 Q3 | F18: 0.0147 | H18: 0.0147
E19: 2012 Q4 | F19: 0.0147 | H19: 0.0147
E20: 2013 Q1 | F20: 0.0147 | H20: 0.0147
E21: 2013 Q2 | F21: 0.0147 | H21: 0.0147
E22: 2013 Q3 | F22: 0.0147 | H22: 0.0147
E23: 2013 Q4 | F23: 0.0147 | H23: 0.0147
E24: 2014 Q1 | F24: 0.0147 | H24: 0.0147
E25: 2014 Q2 | F25: 0.0147 | H25: 0.0147
E26: 2014 Q3 | F26: 0.0147 | H26: =IF(F26<>0,F26,G26) -> 0.0147
E27: 2014 Q4 | F27: 0.0147 | H27: =IF(F27<>0,F27,G27) -> 0.0147
E28: 2015 Q1 | F28: 0.0147 | H28: =IF(F28<>0,F28,G28) -> 0.0147
E29: 2015 Q2 | F29: 0.011 | H29: 0.011
E31: Table 5 - Carrying Charges by Rate Class
A33: Month | B33: Quarter | C33: Monthly Rate | D33: ='3.0 LRAMVA Register'!B10 -> Residential | E33: ='3.0 LRAMVA Register'!C10 -> General Service < 50 kW | F33: ='3.0 LRAMVA Register'!D10 -> General Service > 50 to 4999 kW | G33: ='3.0 LRAMVA Register'!E10 -> Unmetered Scattered Load | H33: ='3.0 LRAMVA Register'!F10 -> Sentinel Lighting | I33: ='3.0 LRAMVA Register'!G10 -> Street Lighting | J33: ='3.0 LRAMVA Register'!H10 -> other | K33: ='3.0 LRAMVA Register'!I10 -> other | L33: ='3.0 LRAMVA Register'!J10 -> other | M33: ='3.0 LRAMVA Register'!K10 -> other | N33: ='3.0 LRAMVA Register'!L10 -> Total
A34: 2011-01-01 | B34: Q1 | C34: =H$12/12 -> 0.001225
A35: 2011-02-01 | B35: Q1 | C35: =H$12/12 -> 0.001225 | D35: =SUM('3.0 LRAMVA Register'!B$11:B$12)*(MONTH($A35)-1)/12*$C35 -> 0.7805058712 | E35: =SUM('3.0 LRAMVA Register'!C$11:C$12)*(MONTH($A35)-1)/12*$C35 -> 0.1291208596 | F35: =SUM('3.0 LRAMVA Register'!D$11:D$12)*(MONTH($A35)-1)/12*$C35 -> 0 | G35: =SUM('3.0 LRAMVA Register'!E$11:E$12)*(MONTH($A35)-1)/12*$C35 -> 0 | H35: =SUM('3.0 LRAMVA Register'!F$11:F$12)*(MONTH($A35)-1)/12*$C35 -> 0 | I35: =SUM('3.0 LRAMVA Register'!G$11:G$12)*(MONTH($A35)-1)/12*$C35 -> 0 | J35: =SUM('3.0 LRAMVA Register'!H$11:H$12)*(MONTH($A35)-1)/12*$C35 -> 0 | K35: =SUM('3.0 LRAMVA Register'!I$11:I$12)*(MONTH($A35)-1)/12*$C35 -> 0 | L35: =SUM('3.0 LRAMVA Register'!J$11:J$12)*(MONTH($A35)-1)/12*$C35 -> 0 | M35: =SUM('3.0 LRAMVA Register'!K$11:K$12)*(MONTH($A35)-1)/12*$C35 -> 0 | N35: =SUM(D35:M35) -> 0.9096267308
A36: 2011-03-01 | B36: Q1 | C36: =H$12/12 -> 0.001225 | D36: =SUM('3.0 LRAMVA Register'!B$11:B$12)*(MONTH($A36)-1)/12*$C36 -> 1.561011742 | E36: =SUM('3.0 LRAMVA Register'!C$11:C$12)*(MONTH($A36)-1)/12*$C36 -> 0.2582417192 | F36: =SUM('3.0 LRAMVA Register'!D$11:D$12)*(MONTH($A36)-1)/12*$C36 -> 0 | G36: =SUM('3.0 LRAMVA Register'!E$11:E$12)*(MONTH($A36)-1)/12*$C36 -> 0 | H36: =SUM('3.0 LRAMVA Register'!F$11:F$12)*(MONTH($A36)-1)/12*$C36 -> 0 | I36: =SUM('3.0 LRAMVA Register'!G$11:G$12)*(MONTH($A36)-1)/12*$C36 -> 0 | J36: =SUM('3.0 LRAMVA Register'!H$11:H$12)*(MONTH($A36)-1)/12*$C36 -> 0 | K36: =SUM('3.0 LRAMVA Register'!I$11:I$12)*(MONTH($A36)-1)/12*$C36 -> 0 | L36: =SUM('3.0 LRAMVA Register'!J$11:J$12)*(MONTH($A36)-1)/12*$C36 -> 0 | M36: =SUM('3.0 LRAMVA Register'!K$11:K$12)*(MONTH($A36)-1)/12*$C36 -> 0 | N36: =SUM(D36:M36) -> 1.819253462
A37: 2011-04-01 | B37: Q2 | C37: =H$13/12 -> 0.001225 | D37: =SUM('3.0 LRAMVA Register'!B$11:B$12)*(MONTH($A37)-1)/12*$C37 -> 2.341517614 | E37: =SUM('3.0 LRAMVA Register'!C$11:C$12)*(MONTH($A37)-1)/12*$C37 -> 0.3873625788 | F37: =SUM('3.0 LRAMVA Register'!D$11:D$12)*(MONTH($A37)-1)/12*$C37 -> 0 | G37: =SUM('3.0 LRAMVA Register'!E$11:E$12)*(MONTH($A37)-1)/12*$C37 -> 0 | H37: =SUM('3.0 LRAMVA Register'!F$11:F$12)*(MONTH($A37)-1)/12*$C37 -> 0 | I37: =SUM('3.0 LRAMVA Register'!G$11:G$12)*(MONTH($A37)-1)/12*$C37 -> 0 | J37: =SUM('3.0 LRAMVA Register'!H$11:H$12)*(MONTH($A37)-1)/12*$C37 -> 0 | K37: =SUM('3.0 LRAMVA Register'!I$11:I$12)*(MONTH($A37)-1)/12*$C37 -> 0 | L37: =SUM('3.0 LRAMVA Register'!J$11:J$12)*(MONTH($A37)-1)/12*$C37 -> 0 | M37: =SUM('3.0 LRAMVA Register'!K$11:K$12)*(MONTH($A37)-1)/12*$C37 -> 0 | N37: 2.728880192
A38: Total for rate year 2010 | D38: =SUM(D34:D37) -> 4.683035227 | E38: =SUM(E34:E37) -> 0.7747251575 | F38: 0 | G38: 0 | H38: 0 | I38: 0 | J38: 0 | K38: 0 | L38: 0 | M38: 0 | N38: 5.457760385
A39: Amount Cleared | N39: =SUM(D39:M39) -> 0
A40: Opening Balance for rate year 2011 | D40: =D38+D39 -> 4.683035227 | E40: =E38+E39 -> 0.7747251575 | F40: =F38+F39 -> 0 | G40: =G38+G39 -> 0 | H40: 0 | I40: 0 | J40: 0 | K40: 0 | L40: 0 | M40: 0 | N40: =N38+N39 -> 5.457760385
A41: 2011-05-01 | B41: Q2 | C41: =H$13/12 -> 0.001225 | D41: =SUM('3.0 LRAMVA Register'!B$11:B$12)*(MONTH($A41)-1)/12*$C41 -> 3.122023485 | E41: =SUM('3.0 LRAMVA Register'!C$11:C$12)*(MONTH($A41)-1)/12*$C41 -> 0.5164834383 | F41: =SUM('3.0 LRAMVA Register'!D$11:D$12)*(MONTH($A41)-1)/12*$C41 -> 0 | G41: =SUM('3.0 LRAMVA Register'!E$11:E$12)*(MONTH($A41)-1)/12*$C41 -> 0 | H41: =SUM('3.0 LRAMVA Register'!F$11:F$12)*(MONTH($A41)-1)/12*$C41 -> 0 | I41: =SUM('3.0 LRAMVA Register'!G$11:G$12)*(MONTH($A41)-1)/12*$C41 -> 0 | J41: =SUM('3.0 LRAMVA Register'!H$11:H$12)*(MONTH($A41)-1)/12*$C41 -> 0 | K41: =SUM('3.0 LRAMVA Register'!I$11:I$12)*(MONTH($A41)-1)/12*$C41 -> 0 | L41: =SUM('3.0 LRAMVA Register'!J$11:J$12)*(MONTH($A41)-1)/12*$C41 -> 0 | M41: =SUM('3.0 LRAMVA Register'!K$11:K$12)*(MONTH($A41)-1)/12*$C41 -> 0 | N41: =SUM(D41:M41) -> 3.638506923
A42: 2011-06-01 | B42: Q2 | C42: =H$13/12 -> 0.001225 | D42: =SUM('3.0 LRAMVA Register'!B$11:B$12)*(MONTH($A42)-1)/12*$C42 -> 3.902529356 | E42: =SUM('3.0 LRAMVA Register'!C$11:C$12)*(MONTH($A42)-1)/12*$C42 -> 0.6456042979 | F42: =SUM('3.0 LRAMVA Register'!D$11:D$12)*(MONTH($A42)-1)/12*$C42 -> 0 | G42: =SUM('3.0 LRAMVA Register'!E$11:E$12)*(MONTH($A42)-1)/12*$C42 -> 0 | H42: =SUM('3.0 LRAMVA Register'!F$11:F$12)*(MONTH($A42)-1)/12*$C42 -> 0 | I42: =SUM('3.0 LRAMVA Register'!G$11:G$12)*(MONTH($A42)-1)/12*$C42 -> 0 | J42: =SUM('3.0 LRAMVA Register'!H$11:H$12)*(MONTH($A42)-1)/12*$C42 -> 0 | K42: =SUM('3.0 LRAMVA Register'!I$11:I$12)*(MONTH($A42)-1)/12*$C42 -> 0 | L42: =SUM('3.0 LRAMVA Register'!J$11:J$12)*(MONTH($A42)-1)/12*$C42 -> 0 | M42: =SUM('3.0 LRAMVA Register'!K$11:K$12)*(MONTH($A42)-1)/12*$C42 -> 0 | N42: =SUM(D42:M42) -> 4.548133654
A43: 2011-07-01 | B43: Q3 | C43: =H$14/12 -> 0.001225 | D43: =SUM('3.0 LRAMVA Register'!B$11:B$12)*(MONTH($A43)-1)/12*$C43 -> 4.683035227 | E43: =SUM('3.0 LRAMVA Register'!C$11:C$12)*(MONTH($A43)-1)/12*$C43 -> 0.7747251575 | F43: =SUM('3.0 LRAMVA Register'!D$11:D$12)*(MONTH($A43)-1)/12*$C43 -> 0 | G43: =SUM('3.0 LRAMVA Register'!E$11:E$12)*(MONTH($A43)-1)/12*$C43 -> 0 | H43: =SUM('3.0 LRAMVA Register'!F$11:F$12)*(MONTH($A43)-1)/12*$C43 -> 0 | I43: =SUM('3.0 LRAMVA Register'!G$11:G$12)*(MONTH($A43)-1)/12*$C43 -> 0 | J43: =SUM('3.0 LRAMVA Register'!H$11:H$12)*(MONTH($A43)-1)/12*$C43 -> 0 | K43: =SUM('3.0 LRAMVA Register'!I$11:I$12)*(MONTH($A43)-1)/12*$C43 -> 0 | L43: =SUM('3.0 LRAMVA Register'!J$11:J$12)*(MONTH($A43)-1)/12*$C43 -> 0 | M43: =SUM('3.0 LRAMVA Register'!K$11:K$12)*(MONTH($A43)-1)/12*$C43 -> 0 | N43: 5.457760385
A44: 2011-08-01 | B44: Q3 | C44: =H$14/12 -> 0.001225 | D44: =SUM('3.0 LRAMVA Register'!B$11:B$12)*(MONTH($A44)-1)/12*$C44 -> 5.463541099 | E44: =SUM('3.0 LRAMVA Register'!C$11:C$12)*(MONTH($A44)-1)/12*$C44 -> 0.9038460171 | F44: =SUM('3.0 LRAMVA Register'!D$11:D$12)*(MONTH($A44)-1)/12*$C44 -> 0 | G44: =SUM('3.0 LRAMVA Register'!E$11:E$12)*(MONTH($A44)-1)/12*$C44 -> 0 | H44: =SUM('3.0 LRAMVA Register'!F$11:F$12)*(MONTH($A44)-1)/12*$C44 -> 0 | I44: =SUM('3.0 LRAMVA Register'!G$11:G$12)*(MONTH($A44)-1)/12*$C44 -> 0 | J44: =SUM('3.0 LRAMVA Register'!H$11:H$12)*(MONTH($A44)-1)/12*$C44 -> 0 | K44: =SUM('3.0 LRAMVA Register'!I$11:I$12)*(MONTH($A44)-1)/12*$C44 -> 0 | L44: =SUM('3.0 LRAMVA Register'!J$11:J$12)*(MONTH($A44)-1)/12*$C44 -> 0 | M44: =SUM('3.0 LRAMVA Register'!K$11:K$12)*(MONTH($A44)-1)/12*$C44 -> 0 | N44: 6.367387116
A45: 2011-09-01 | B45: Q3 | C45: =H$14/12 -> 0.001225 | D45: =SUM('3.0 LRAMVA Register'!B$11:B$12)*(MONTH($A45)-1)/12*$C45 -> 6.24404697 | E45: =SUM('3.0 LRAMVA Register'!C$11:C$12)*(MONTH($A45)-1)/12*$C45 -> 1.032966877 | F45: =SUM('3.0 LRAMVA Register'!D$11:D$12)*(MONTH($A45)-1)/12*$C45 -> 0 | G45: =SUM('3.0 LRAMVA Register'!E$11:E$12)*(MONTH($A45)-1)/12*$C45 -> 0 | H45: =SUM('3.0 LRAMVA Register'!F$11:F$12)*(MONTH($A45)-1)/12*$C45 -> 0 | I45: =SUM('3.0 LRAMVA Register'!G$11:G$12)*(MONTH($A45)-1)/12*$C45 -> 0 | J45: =SUM('3.0 LRAMVA Register'!H$11:H$12)*(MONTH($A45)-1)/12*$C45 -> 0 | K45: =SUM('3.0 LRAMVA Register'!I$11:I$12)*(MONTH($A45)-1)/12*$C45 -> 0 | L45: =SUM('3.0 LRAMVA Register'!J$11:J$12)*(MONTH($A45)-1)/12*$C45 -> 0 | M45: =SUM('3.0 LRAMVA Register'!K$11:K$12)*(MONTH($A45)-1)/12*$C45 -> 0 | N45: 7.277013847
A46: 2011-10-01 | B46: Q4 | C46: =H$15/12 -> 0.001225 | D46: =SUM('3.0 LRAMVA Register'!B$11:B$12)*(MONTH($A46)-1)/12*$C46 -> 7.024552841 | E46: =SUM('3.0 LRAMVA Register'!C$11:C$12)*(MONTH($A46)-1)/12*$C46 -> 1.162087736 | F46: =SUM('3.0 LRAMVA Register'!D$11:D$12)*(MONTH($A46)-1)/12*$C46 -> 0 | G46: =SUM('3.0 LRAMVA Register'!E$11:E$12)*(MONTH($A46)-1)/12*$C46 -> 0 | H46: =SUM('3.0 LRAMVA Register'!F$11:F$12)*(MONTH($A46)-1)/12*$C46 -> 0 | I46: =SUM('3.0 LRAMVA Register'!G$11:G$12)*(MONTH($A46)-1)/12*$C46 -> 0 | J46: =SUM('3.0 LRAMVA Register'!H$11:H$12)*(MONTH($A46)-1)/12*$C46 -> 0 | K46: =SUM('3.0 LRAMVA Register'!I$11:I$12)*(MONTH($A46)-1)/12*$C46 -> 0 | L46: =SUM('3.0 LRAMVA Register'!J$11:J$12)*(MONTH($A46)-1)/12*$C46 -> 0 | M46: =SUM('3.0 LRAMVA Register'!K$11:K$12)*(MONTH($A46)-1)/12*$C46 -> 0 | N46: 8.186640577
A47: 2011-11-01 | B47: Q4 | C47: =H$15/12 -> 0.001225 | D47: =SUM('3.0 LRAMVA Register'!B$11:B$12)*(MONTH($A47)-1)/12*$C47 -> 7.805058712 | E47: =SUM('3.0 LRAMVA Register'!C$11:C$12)*(MONTH($A47)-1)/12*$C47 -> 1.291208596 | F47: =SUM('3.0 LRAMVA Register'!D$11:D$12)*(MONTH($A47)-1)/12*$C47 -> 0 | G47: =SUM('3.0 LRAMVA Register'!E$11:E$12)*(MONTH($A47)-1)/12*$C47 -> 0 | H47: =SUM('3.0 LRAMVA Register'!F$11:F$12)*(MONTH($A47)-1)/12*$C47 -> 0 | I47: =SUM('3.0 LRAMVA Register'!G$11:G$12)*(MONTH($A47)-1)/12*$C47 -> 0 | J47: =SUM('3.0 LRAMVA Register'!H$11:H$12)*(MONTH($A47)-1)/12*$C47 -> 0 | K47: =SUM('3.0 LRAMVA Register'!I$11:I$12)*(MONTH($A47)-1)/12*$C47 -> 0 | L47: =SUM('3.0 LRAMVA Register'!J$11:J$12)*(MONTH($A47)-1)/12*$C47 -> 0 | M47: =SUM('3.0 LRAMVA Register'!K$11:K$12)*(MONTH($A47)-1)/12*$C47 -> 0 | N47: 9.096267308
A48: 2011-12-01 | B48: Q4 | C48: =H$15/12 -> 0.001225 | D48: =SUM('3.0 LRAMVA Register'!B$11:B$12)*(MONTH($A48)-1)/12*$C48 -> 8.585564584 | E48: =SUM('3.0 LRAMVA Register'!C$11:C$12)*(MONTH($A48)-1)/12*$C48 -> 1.420329455 | F48: =SUM('3.0 LRAMVA Register'!D$11:D$12)*(MONTH($A48)-1)/12*$C48 -> 0 | G48: =SUM('3.0 LRAMVA Register'!E$11:E$12)*(MONTH($A48)-1)/12*$C48 -> 0 | H48: =SUM('3.0 LRAMVA Register'!F$11:F$12)*(MONTH($A48)-1)/12*$C48 -> 0 | I48: =SUM('3.0 LRAMVA Register'!G$11:G$12)*(MONTH($A48)-1)/12*$C48 -> 0 | J48: =SUM('3.0 LRAMVA Register'!H$11:H$12)*(MONTH($A48)-1)/12*$C48 -> 0 | K48: =SUM('3.0 LRAMVA Register'!I$11:I$12)*(MONTH($A48)-1)/12*$C48 -> 0 | L48: =SUM('3.0 LRAMVA Register'!J$11:J$12)*(MONTH($A48)-1)/12*$C48 -> 0 | M48: =SUM('3.0 LRAMVA Register'!K$11:K$12)*(MONTH($A48)-1)/12*$C48 -> 0 | N48: 10.00589404
A49: 2012-01-01 | B49: Q1 | C49: =H$16/12 -> 0.001225 | D49: =(SUM('3.0 LRAMVA Register'!B$11:B$13)+SUM('3.0 LRAMVA Register'!B$19:B$20)*(MONTH($A49)-1)/12)*$C49 -> 9.366070455 | E49: =(SUM('3.0 LRAMVA Register'!C$11:C$13)+SUM('3.0 LRAMVA Register'!C$19:C$20)*(MONTH($A49)-1)/12)*$C49 -> 1.549450315 | F49: =(SUM('3.0 LRAMVA Register'!D$11:D$13)+SUM('3.0 LRAMVA Register'!D$19:D$20)*(MONTH($A49)-1)/12)*$C49 -> 0 | G49: =(SUM('3.0 LRAMVA Register'!E$11:E$13)+SUM('3.0 LRAMVA Register'!E$19:E$20)*(MONTH($A49)-1)/12)*$C49 -> 0 | H49: =(SUM('3.0 LRAMVA Register'!F$11:F$13)+SUM('3.0 LRAMVA Register'!F$19:F$20)*(MONTH($A49)-1)/12)*$C49 -> 0 | I49: =(SUM('3.0 LRAMVA Register'!G$11:G$13)+SUM('3.0 LRAMVA Register'!G$19:G$20)*(MONTH($A49)-1)/12)*$C49 -> 0 | J49: =(SUM('3.0 LRAMVA Register'!H$11:H$13)+SUM('3.0 LRAMVA Register'!H$19:H$20)*(MONTH($A49)-1)/12)*$C49 -> 0 | K49: =(SUM('3.0 LRAMVA Register'!I$11:I$13)+SUM('3.0 LRAMVA Register'!I$19:I$20)*(MONTH($A49)-1)/12)*$C49 -> 0 | L49: =(SUM('3.0 LRAMVA Register'!J$11:J$13)+SUM('3.0 LRAMVA Register'!J$19:J$20)*(MONTH($A49)-1)/12)*$C49 -> 0 | M49: =(SUM('3.0 LRAMVA Register'!K$11:K$13)+SUM('3.0 LRAMVA Register'!K$19:K$20)*(MONTH($A49)-1)/12)*$C49 -> 0 | N49: 10.91552077
A50: 2012-02-01 | B50: Q1 | C50: =H$16/12 -> 0.001225 | D50: =(SUM('3.0 LRAMVA Register'!B$11:B$13)+SUM('3.0 LRAMVA Register'!B$19:B$20)*(MONTH($A50)-1)/12)*$C50 -> 10.72272046 | E50: =(SUM('3.0 LRAMVA Register'!C$11:C$13)+SUM('3.0 LRAMVA Register'!C$19:C$20)*(MONTH($A50)-1)/12)*$C50 -> 1.792493991 | F50: =(SUM('3.0 LRAMVA Register'!D$11:D$13)+SUM('3.0 LRAMVA Register'!D$19:D$20)*(MONTH($A50)-1)/12)*$C50 -> 0.1075628727 | G50: =(SUM('3.0 LRAMVA Register'!E$11:E$13)+SUM('3.0 LRAMVA Register'!E$19:E$20)*(MONTH($A50)-1)/12)*$C50 -> 0 | H50: =(SUM('3.0 LRAMVA Register'!F$11:F$13)+SUM('3.0 LRAMVA Register'!F$19:F$20)*(MONTH($A50)-1)/12)*$C50 -> 0 | I50: =(SUM('3.0 LRAMVA Register'!G$11:G$13)+SUM('3.0 LRAMVA Register'!G$19:G$20)*(MONTH($A50)-1)/12)*$C50 -> 0 | J50: =(SUM('3.0 LRAMVA Register'!H$11:H$13)+SUM('3.0 LRAMVA Register'!H$19:H$20)*(MONTH($A50)-1)/12)*$C50 -> 0 | K50: =(SUM('3.0 LRAMVA Register'!I$11:I$13)+SUM('3.0 LRAMVA Register'!I$19:I$20)*(MONTH($A50)-1)/12)*$C50 -> 0 | L50: =(SUM('3.0 LRAMVA Register'!J$11:J$13)+SUM('3.0 LRAMVA Register'!J$19:J$20)*(MONTH($A50)-1)/12)*$C50 -> 0 | M50: =(SUM('3.0 LRAMVA Register'!K$11:K$13)+SUM('3.0 LRAMVA Register'!K$19:K$20)*(MONTH($A50)-1)/12)*$C50 -> 0 | N50: 12.62277733
A51: 2012-03-01 | B51: Q1 | C51: =H$16/12 -> 0.001225 | D51: =(SUM('3.0 LRAMVA Register'!B$11:B$13)+SUM('3.0 LRAMVA Register'!B$19:B$20)*(MONTH($A51)-1)/12)*$C51 -> 12.07937047 | E51: =(SUM('3.0 LRAMVA Register'!C$11:C$13)+SUM('3.0 LRAMVA Register'!C$19:C$20)*(MONTH($A51)-1)/12)*$C51 -> 2.035537666 | F51: =(SUM('3.0 LRAMVA Register'!D$11:D$13)+SUM('3.0 LRAMVA Register'!D$19:D$20)*(MONTH($A51)-1)/12)*$C51 -> 0.2151257453 | G51: =(SUM('3.0 LRAMVA Register'!E$11:E$13)+SUM('3.0 LRAMVA Register'!E$19:E$20)*(MONTH($A51)-1)/12)*$C51 -> 0 | H51: =(SUM('3.0 LRAMVA Register'!F$11:F$13)+SUM('3.0 LRAMVA Register'!F$19:F$20)*(MONTH($A51)-1)/12)*$C51 -> 0 | I51: =(SUM('3.0 LRAMVA Register'!G$11:G$13)+SUM('3.0 LRAMVA Register'!G$19:G$20)*(MONTH($A51)-1)/12)*$C51 -> 0 | J51: =(SUM('3.0 LRAMVA Register'!H$11:H$13)+SUM('3.0 LRAMVA Register'!H$19:H$20)*(MONTH($A51)-1)/12)*$C51 -> 0 | K51: =(SUM('3.0 LRAMVA Register'!I$11:I$13)+SUM('3.0 LRAMVA Register'!I$19:I$20)*(MONTH($A51)-1)/12)*$C51 -> 0 | L51: =(SUM('3.0 LRAMVA Register'!J$11:J$13)+SUM('3.0 LRAMVA Register'!J$19:J$20)*(MONTH($A51)-1)/12)*$C51 -> 0 | M51: =(SUM('3.0 LRAMVA Register'!K$11:K$13)+SUM('3.0 LRAMVA Register'!K$19:K$20)*(MONTH($A51)-1)/12)*$C51 -> 0 | N51: 14.33003388
A52: 2012-04-01 | B52: Q2 | C52: =H$17/12 -> 0.001225 | D52: =(SUM('3.0 LRAMVA Register'!B$11:B$13)+SUM('3.0 LRAMVA Register'!B$19:B$20)*(MONTH($A52)-1)/12)*$C52 -> 13.43602048 | E52: =(SUM('3.0 LRAMVA Register'!C$11:C$13)+SUM('3.0 LRAMVA Register'!C$19:C$20)*(MONTH($A52)-1)/12)*$C52 -> 2.278581342 | F52: =(SUM('3.0 LRAMVA Register'!D$11:D$13)+SUM('3.0 LRAMVA Register'!D$19:D$20)*(MONTH($A52)-1)/12)*$C52 -> 0.322688618 | G52: =(SUM('3.0 LRAMVA Register'!E$11:E$13)+SUM('3.0 LRAMVA Register'!E$19:E$20)*(MONTH($A52)-1)/12)*$C52 -> 0 | H52: =(SUM('3.0 LRAMVA Register'!F$11:F$13)+SUM('3.0 LRAMVA Register'!F$19:F$20)*(MONTH($A52)-1)/12)*$C52 -> 0 | I52: =(SUM('3.0 LRAMVA Register'!G$11:G$13)+SUM('3.0 LRAMVA Register'!G$19:G$20)*(MONTH($A52)-1)/12)*$C52 -> 0 | J52: =(SUM('3.0 LRAMVA Register'!H$11:H$13)+SUM('3.0 LRAMVA Register'!H$19:H$20)*(MONTH($A52)-1)/12)*$C52 -> 0 | K52: =(SUM('3.0 LRAMVA Register'!I$11:I$13)+SUM('3.0 LRAMVA Register'!I$19:I$20)*(MONTH($A52)-1)/12)*$C52 -> 0 | L52: =(SUM('3.0 LRAMVA Register'!J$11:J$13)+SUM('3.0 LRAMVA Register'!J$19:J$20)*(MONTH($A52)-1)/12)*$C52 -> 0 | M52: =(SUM('3.0 LRAMVA Register'!K$11:K$13)+SUM('3.0 LRAMVA Register'!K$19:K$20)*(MONTH($A52)-1)/12)*$C52 -> 0 | N52: =SUM(D52:M52) -> 16.03729044
A53: Total for rate year 2011 | D53: =SUM(D40:D52) -> 97.11756937 | E53: =SUM(E40:E52) -> 16.17804005 | F53: 0.645377236 | G53: 0 | H53: 0 | I53: 0 | J53: 0 | K53: =SUM(K40:K52) -> 0 | L53: 0 | M53: 0 | N53: 113.9409867
A54: Amount Cleared | N54: =SUM(D54:M54) -> 0
A55: Opening Balance for rate year 2012 | D55: =D53+D54 -> 97.11756937 | E55: 16.17804005 | F55: 0.645377236 | G55: 0 | H55: 0 | I55: 0 | J55: 0 | K55: 0 | L55: 0 | M55: 0 | N55: =N53+N54 -> 113.9409867
A56: 2012-05-01 | B56: Q2 | C56: =H$17/12 -> 0.001225 | D56: =(SUM('3.0 LRAMVA Register'!B$11:B$13)+SUM('3.0 LRAMVA Register'!B$19:B$20)*(MONTH($A56)-1)/12)*$C56 -> 14.79267049 | E56: =(SUM('3.0 LRAMVA Register'!C$11:C$13)+SUM('3.0 LRAMVA Register'!C$19:C$20)*(MONTH($A56)-1)/12)*$C56 -> 2.521625018 | F56: =(SUM('3.0 LRAMVA Register'!D$11:D$13)+SUM('3.0 LRAMVA Register'!D$19:D$20)*(MONTH($A56)-1)/12)*$C56 -> 0.4302514907 | G56: =(SUM('3.0 LRAMVA Register'!E$11:E$13)+SUM('3.0 LRAMVA Register'!E$19:E$20)*(MONTH($A56)-1)/12)*$C56 -> 0 | H56: =(SUM('3.0 LRAMVA Register'!F$11:F$13)+SUM('3.0 LRAMVA Register'!F$19:F$20)*(MONTH($A56)-1)/12)*$C56 -> 0 | I56: =(SUM('3.0 LRAMVA Register'!G$11:G$13)+SUM('3.0 LRAMVA Register'!G$19:G$20)*(MONTH($A56)-1)/12)*$C56 -> 0 | J56: =(SUM('3.0 LRAMVA Register'!H$11:H$13)+SUM('3.0 LRAMVA Register'!H$19:H$20)*(MONTH($A56)-1)/12)*$C56 -> 0 | K56: =(SUM('3.0 LRAMVA Register'!I$11:I$13)+SUM('3.0 LRAMVA Register'!I$19:I$20)*(MONTH($A56)-1)/12)*$C56 -> 0 | L56: =(SUM('3.0 LRAMVA Register'!J$11:J$13)+SUM('3.0 LRAMVA Register'!J$19:J$20)*(MONTH($A56)-1)/12)*$C56 -> 0 | M56: =(SUM('3.0 LRAMVA Register'!K$11:K$13)+SUM('3.0 LRAMVA Register'!K$19:K$20)*(MONTH($A56)-1)/12)*$C56 -> 0 | N56: =SUM(D56:M56) -> 17.744547
A57: 2012-06-01 | B57: Q2 | C57: =H$17/12 -> 0.001225 | D57: =(SUM('3.0 LRAMVA Register'!B$11:B$13)+SUM('3.0 LRAMVA Register'!B$19:B$20)*(MONTH($A57)-1)/12)*$C57 -> 16.1493205 | E57: =(SUM('3.0 LRAMVA Register'!C$11:C$13)+SUM('3.0 LRAMVA Register'!C$19:C$20)*(MONTH($A57)-1)/12)*$C57 -> 2.764668693 | F57: =(SUM('3.0 LRAMVA Register'!D$11:D$13)+SUM('3.0 LRAMVA Register'!D$19:D$20)*(MONTH($A57)-1)/12)*$C57 -> 0.5378143633 | G57: =(SUM('3.0 LRAMVA Register'!E$11:E$13)+SUM('3.0 LRAMVA Register'!E$19:E$20)*(MONTH($A57)-1)/12)*$C57 -> 0 | H57: =(SUM('3.0 LRAMVA Register'!F$11:F$13)+SUM('3.0 LRAMVA Register'!F$19:F$20)*(MONTH($A57)-1)/12)*$C57 -> 0 | I57: =(SUM('3.0 LRAMVA Register'!G$11:G$13)+SUM('3.0 LRAMVA Register'!G$19:G$20)*(MONTH($A57)-1)/12)*$C57 -> 0 | J57: =(SUM('3.0 LRAMVA Register'!H$11:H$13)+SUM('3.0 LRAMVA Register'!H$19:H$20)*(MONTH($A57)-1)/12)*$C57 -> 0 | K57: =(SUM('3.0 LRAMVA Register'!I$11:I$13)+SUM('3.0 LRAMVA Register'!I$19:I$20)*(MONTH($A57)-1)/12)*$C57 -> 0 | L57: =(SUM('3.0 LRAMVA Register'!J$11:J$13)+SUM('3.0 LRAMVA Register'!J$19:J$20)*(MONTH($A57)-1)/12)*$C57 -> 0 | M57: =(SUM('3.0 LRAMVA Register'!K$11:K$13)+SUM('3.0 LRAMVA Register'!K$19:K$20)*(MONTH($A57)-1)/12)*$C57 -> 0 | N57: 19.45180355
A58: 2012-07-01 | B58: Q3 | C58: =H$18/12 -> 0.001225 | D58: =(SUM('3.0 LRAMVA Register'!B$11:B$13)+SUM('3.0 LRAMVA Register'!B$19:B$20)*(MONTH($A58)-1)/12)*$C58 -> 17.5059705 | E58: =(SUM('3.0 LRAMVA Register'!C$11:C$13)+SUM('3.0 LRAMVA Register'!C$19:C$20)*(MONTH($A58)-1)/12)*$C58 -> 3.007712369 | F58: =(SUM('3.0 LRAMVA Register'!D$11:D$13)+SUM('3.0 LRAMVA Register'!D$19:D$20)*(MONTH($A58)-1)/12)*$C58 -> 0.645377236 | G58: =(SUM('3.0 LRAMVA Register'!E$11:E$13)+SUM('3.0 LRAMVA Register'!E$19:E$20)*(MONTH($A58)-1)/12)*$C58 -> 0 | H58: =(SUM('3.0 LRAMVA Register'!F$11:F$13)+SUM('3.0 LRAMVA Register'!F$19:F$20)*(MONTH($A58)-1)/12)*$C58 -> 0 | I58: =(SUM('3.0 LRAMVA Register'!G$11:G$13)+SUM('3.0 LRAMVA Register'!G$19:G$20)*(MONTH($A58)-1)/12)*$C58 -> 0 | J58: =(SUM('3.0 LRAMVA Register'!H$11:H$13)+SUM('3.0 LRAMVA Register'!H$19:H$20)*(MONTH($A58)-1)/12)*$C58 -> 0 | K58: =(SUM('3.0 LRAMVA Register'!I$11:I$13)+SUM('3.0 LRAMVA Register'!I$19:I$20)*(MONTH($A58)-1)/12)*$C58 -> 0 | L58: =(SUM('3.0 LRAMVA Register'!J$11:J$13)+SUM('3.0 LRAMVA Register'!J$19:J$20)*(MONTH($A58)-1)/12)*$C58 -> 0 | M58: =(SUM('3.0 LRAMVA Register'!K$11:K$13)+SUM('3.0 LRAMVA Register'!K$19:K$20)*(MONTH($A58)-1)/12)*$C58 -> 0 | N58: 21.15906011
A59: 2012-08-01 | B59: Q3 | C59: =H$18/12 -> 0.001225 | D59: =(SUM('3.0 LRAMVA Register'!B$11:B$13)+SUM('3.0 LRAMVA Register'!B$19:B$20)*(MONTH($A59)-1)/12)*$C59 -> 18.86262051 | E59: =(SUM('3.0 LRAMVA Register'!C$11:C$13)+SUM('3.0 LRAMVA Register'!C$19:C$20)*(MONTH($A59)-1)/12)*$C59 -> 3.250756045 | F59: =(SUM('3.0 LRAMVA Register'!D$11:D$13)+SUM('3.0 LRAMVA Register'!D$19:D$20)*(MONTH($A59)-1)/12)*$C59 -> 0.7529401087 | G59: =(SUM('3.0 LRAMVA Register'!E$11:E$13)+SUM('3.0 LRAMVA Register'!E$19:E$20)*(MONTH($A59)-1)/12)*$C59 -> 0 | H59: =(SUM('3.0 LRAMVA Register'!F$11:F$13)+SUM('3.0 LRAMVA Register'!F$19:F$20)*(MONTH($A59)-1)/12)*$C59 -> 0 | I59: =(SUM('3.0 LRAMVA Register'!G$11:G$13)+SUM('3.0 LRAMVA Register'!G$19:G$20)*(MONTH($A59)-1)/12)*$C59 -> 0 | J59: =(SUM('3.0 LRAMVA Register'!H$11:H$13)+SUM('3.0 LRAMVA Register'!H$19:H$20)*(MONTH($A59)-1)/12)*$C59 -> 0 | K59: =(SUM('3.0 LRAMVA Register'!I$11:I$13)+SUM('3.0 LRAMVA Register'!I$19:I$20)*(MONTH($A59)-1)/12)*$C59 -> 0 | L59: =(SUM('3.0 LRAMVA Register'!J$11:J$13)+SUM('3.0 LRAMVA Register'!J$19:J$20)*(MONTH($A59)-1)/12)*$C59 -> 0 | M59: =(SUM('3.0 LRAMVA Register'!K$11:K$13)+SUM('3.0 LRAMVA Register'!K$19:K$20)*(MONTH($A59)-1)/12)*$C59 -> 0 | N59: 22.86631667
A60: 2012-09-01 | B60: Q3 | C60: =H$18/12 -> 0.001225 | D60: =(SUM('3.0 LRAMVA Register'!B$11:B$13)+SUM('3.0 LRAMVA Register'!B$19:B$20)*(MONTH($A60)-1)/12)*$C60 -> 20.21927052 | E60: =(SUM('3.0 LRAMVA Register'!C$11:C$13)+SUM('3.0 LRAMVA Register'!C$19:C$20)*(MONTH($A60)-1)/12)*$C60 -> 3.49379972 | F60: =(SUM('3.0 LRAMVA Register'!D$11:D$13)+SUM('3.0 LRAMVA Register'!D$19:D$20)*(MONTH($A60)-1)/12)*$C60 -> 0.8605029813 | G60: =(SUM('3.0 LRAMVA Register'!E$11:E$13)+SUM('3.0 LRAMVA Register'!E$19:E$20)*(MONTH($A60)-1)/12)*$C60 -> 0 | H60: =(SUM('3.0 LRAMVA Register'!F$11:F$13)+SUM('3.0 LRAMVA Register'!F$19:F$20)*(MONTH($A60)-1)/12)*$C60 -> 0 | I60: =(SUM('3.0 LRAMVA Register'!G$11:G$13)+SUM('3.0 LRAMVA Register'!G$19:G$20)*(MONTH($A60)-1)/12)*$C60 -> 0 | J60: =(SUM('3.0 LRAMVA Register'!H$11:H$13)+SUM('3.0 LRAMVA Register'!H$19:H$20)*(MONTH($A60)-1)/12)*$C60 -> 0 | K60: =(SUM('3.0 LRAMVA Register'!I$11:I$13)+SUM('3.0 LRAMVA Register'!I$19:I$20)*(MONTH($A60)-1)/12)*$C60 -> 0 | L60: =(SUM('3.0 LRAMVA Register'!J$11:J$13)+SUM('3.0 LRAMVA Register'!J$19:J$20)*(MONTH($A60)-1)/12)*$C60 -> 0 | M60: =(SUM('3.0 LRAMVA Register'!K$11:K$13)+SUM('3.0 LRAMVA Register'!K$19:K$20)*(MONTH($A60)-1)/12)*$C60 -> 0 | N60: 24.57357322
A61: 2012-10-01 | B61: Q4 | C61: =H$19/12 -> 0.001225 | D61: =(SUM('3.0 LRAMVA Register'!B$11:B$13)+SUM('3.0 LRAMVA Register'!B$19:B$20)*(MONTH($A61)-1)/12)*$C61 -> 21.57592053 | E61: =(SUM('3.0 LRAMVA Register'!C$11:C$13)+SUM('3.0 LRAMVA Register'!C$19:C$20)*(MONTH($A61)-1)/12)*$C61 -> 3.736843396 | F61: =(SUM('3.0 LRAMVA Register'!D$11:D$13)+SUM('3.0 LRAMVA Register'!D$19:D$20)*(MONTH($A61)-1)/12)*$C61 -> 0.968065854 | G61: =(SUM('3.0 LRAMVA Register'!E$11:E$13)+SUM('3.0 LRAMVA Register'!E$19:E$20)*(MONTH($A61)-1)/12)*$C61 -> 0 | H61: =(SUM('3.0 LRAMVA Register'!F$11:F$13)+SUM('3.0 LRAMVA Register'!F$19:F$20)*(MONTH($A61)-1)/12)*$C61 -> 0 | I61: =(SUM('3.0 LRAMVA Register'!G$11:G$13)+SUM('3.0 LRAMVA Register'!G$19:G$20)*(MONTH($A61)-1)/12)*$C61 -> 0 | J61: =(SUM('3.0 LRAMVA Register'!H$11:H$13)+SUM('3.0 LRAMVA Register'!H$19:H$20)*(MONTH($A61)-1)/12)*$C61 -> 0 | K61: =(SUM('3.0 LRAMVA Register'!I$11:I$13)+SUM('3.0 LRAMVA Register'!I$19:I$20)*(MONTH($A61)-1)/12)*$C61 -> 0 | L61: =(SUM('3.0 LRAMVA Register'!J$11:J$13)+SUM('3.0 LRAMVA Register'!J$19:J$20)*(MONTH($A61)-1)/12)*$C61 -> 0 | M61: =(SUM('3.0 LRAMVA Register'!K$11:K$13)+SUM('3.0 LRAMVA Register'!K$19:K$20)*(MONTH($A61)-1)/12)*$C61 -> 0 | N61: 26.28082978
A62: 2012-11-01 | B62: Q4 | C62: =H$19/12 -> 0.001225 | D62: =(SUM('3.0 LRAMVA Register'!B$11:B$13)+SUM('3.0 LRAMVA Register'!B$19:B$20)*(MONTH($A62)-1)/12)*$C62 -> 22.93257054 | E62: =(SUM('3.0 LRAMVA Register'!C$11:C$13)+SUM('3.0 LRAMVA Register'!C$19:C$20)*(MONTH($A62)-1)/12)*$C62 -> 3.979887072 | F62: =(SUM('3.0 LRAMVA Register'!D$11:D$13)+SUM('3.0 LRAMVA Register'!D$19:D$20)*(MONTH($A62)-1)/12)*$C62 -> 1.075628727 | G62: =(SUM('3.0 LRAMVA Register'!E$11:E$13)+SUM('3.0 LRAMVA Register'!E$19:E$20)*(MONTH($A62)-1)/12)*$C62 -> 0 | H62: =(SUM('3.0 LRAMVA Register'!F$11:F$13)+SUM('3.0 LRAMVA Register'!F$19:F$20)*(MONTH($A62)-1)/12)*$C62 -> 0 | I62: =(SUM('3.0 LRAMVA Register'!G$11:G$13)+SUM('3.0 LRAMVA Register'!G$19:G$20)*(MONTH($A62)-1)/12)*$C62 -> 0 | J62: =(SUM('3.0 LRAMVA Register'!H$11:H$13)+SUM('3.0 LRAMVA Register'!H$19:H$20)*(MONTH($A62)-1)/12)*$C62 -> 0 | K62: =(SUM('3.0 LRAMVA Register'!I$11:I$13)+SUM('3.0 LRAMVA Register'!I$19:I$20)*(MONTH($A62)-1)/12)*$C62 -> 0 | L62: =(SUM('3.0 LRAMVA Register'!J$11:J$13)+SUM('3.0 LRAMVA Register'!J$19:J$20)*(MONTH($A62)-1)/12)*$C62 -> 0 | M62: =(SUM('3.0 LRAMVA Register'!K$11:K$13)+SUM('3.0 LRAMVA Register'!K$19:K$20)*(MONTH($A62)-1)/12)*$C62 -> 0 | N62: 27.98808634
A63: 2012-12-01 | B63: Q4 | C63: =H$19/12 -> 0.001225 | D63: =(SUM('3.0 LRAMVA Register'!B$11:B$13)+SUM('3.0 LRAMVA Register'!B$19:B$20)*(MONTH($A63)-1)/12)*$C63 -> 24.28922055 | E63: =(SUM('3.0 LRAMVA Register'!C$11:C$13)+SUM('3.0 LRAMVA Register'!C$19:C$20)*(MONTH($A63)-1)/12)*$C63 -> 4.222930747 | F63: =(SUM('3.0 LRAMVA Register'!D$11:D$13)+SUM('3.0 LRAMVA Register'!D$19:D$20)*(MONTH($A63)-1)/12)*$C63 -> 1.183191599 | G63: =(SUM('3.0 LRAMVA Register'!E$11:E$13)+SUM('3.0 LRAMVA Register'!E$19:E$20)*(MONTH($A63)-1)/12)*$C63 -> 0 | H63: =(SUM('3.0 LRAMVA Register'!F$11:F$13)+SUM('3.0 LRAMVA Register'!F$19:F$20)*(MONTH($A63)-1)/12)*$C63 -> 0 | I63: =(SUM('3.0 LRAMVA Register'!G$11:G$13)+SUM('3.0 LRAMVA Register'!G$19:G$20)*(MONTH($A63)-1)/12)*$C63 -> 0 | J63: =(SUM('3.0 LRAMVA Register'!H$11:H$13)+SUM('3.0 LRAMVA Register'!H$19:H$20)*(MONTH($A63)-1)/12)*$C63 -> 0 | K63: =(SUM('3.0 LRAMVA Register'!I$11:I$13)+SUM('3.0 LRAMVA Register'!I$19:I$20)*(MONTH($A63)-1)/12)*$C63 -> 0 | L63: =(SUM('3.0 LRAMVA Register'!J$11:J$13)+SUM('3.0 LRAMVA Register'!J$19:J$20)*(MONTH($A63)-1)/12)*$C63 -> 0 | M63: =(SUM('3.0 LRAMVA Register'!K$11:K$13)+SUM('3.0 LRAMVA Register'!K$19:K$20)*(MONTH($A63)-1)/12)*$C63 -> 0 | N63: 29.69534289
A64: 2013-01-01 | B64: Q1 | C64: =H$20/12 -> 0.001225 | D64: =(SUM('3.0 LRAMVA Register'!B$11:B$21)+SUM('3.0 LRAMVA Register'!B$27:B$28)*(MONTH($A64)-1)/12)*$C64 -> 44.65337393 | E64: =(SUM('3.0 LRAMVA Register'!C$11:C$21)+SUM('3.0 LRAMVA Register'!C$27:C$28)*(MONTH($A64)-1)/12)*$C64 -> 7.610428892 | F64: =(SUM('3.0 LRAMVA Register'!D$11:D$21)+SUM('3.0 LRAMVA Register'!D$27:D$28)*(MONTH($A64)-1)/12)*$C64 -> 1.290754472 | G64: =(SUM('3.0 LRAMVA Register'!E$11:E$21)+SUM('3.0 LRAMVA Register'!E$27:E$28)*(MONTH($A64)-1)/12)*$C64 -> 0 | H64: =(SUM('3.0 LRAMVA Register'!F$11:F$21)+SUM('3.0 LRAMVA Register'!F$27:F$28)*(MONTH($A64)-1)/12)*$C64 -> 0 | I64: =(SUM('3.0 LRAMVA Register'!G$11:G$21)+SUM('3.0 LRAMVA Register'!G$27:G$28)*(MONTH($A64)-1)/12)*$C64 -> 0 | J64: =(SUM('3.0 LRAMVA Register'!H$11:H$21)+SUM('3.0 LRAMVA Register'!H$27:H$28)*(MONTH($A64)-1)/12)*$C64 -> 0 | K64: =(SUM('3.0 LRAMVA Register'!I$11:I$21)+SUM('3.0 LRAMVA Register'!I$27:I$28)*(MONTH($A64)-1)/12)*$C64 -> 0 | L64: =(SUM('3.0 LRAMVA Register'!J$11:J$21)+SUM('3.0 LRAMVA Register'!J$27:J$28)*(MONTH($A64)-1)/12)*$C64 -> 0 | M64: =(SUM('3.0 LRAMVA Register'!K$11:K$21)+SUM('3.0 LRAMVA Register'!K$27:K$28)*(MONTH($A64)-1)/12)*$C64 -> 0 | N64: 53.5545573
A65: 2013-02-01 | B65: Q1 | C65: =H$20/12 -> 0.001225 | D65: =(SUM('3.0 LRAMVA Register'!B$11:B$21)+SUM('3.0 LRAMVA Register'!B$27:B$28)*(MONTH($A65)-1)/12)*$C65 -> 44.17718544 | E65: =(SUM('3.0 LRAMVA Register'!C$11:C$21)+SUM('3.0 LRAMVA Register'!C$27:C$28)*(MONTH($A65)-1)/12)*$C65 -> 7.790755099 | F65: =(SUM('3.0 LRAMVA Register'!D$11:D$21)+SUM('3.0 LRAMVA Register'!D$27:D$28)*(MONTH($A65)-1)/12)*$C65 -> 1.308686502 | G65: =(SUM('3.0 LRAMVA Register'!E$11:E$21)+SUM('3.0 LRAMVA Register'!E$27:E$28)*(MONTH($A65)-1)/12)*$C65 -> -0.2066690354 | H65: =(SUM('3.0 LRAMVA Register'!F$11:F$21)+SUM('3.0 LRAMVA Register'!F$27:F$28)*(MONTH($A65)-1)/12)*$C65 -> -0.02490276979 | I65: =(SUM('3.0 LRAMVA Register'!G$11:G$21)+SUM('3.0 LRAMVA Register'!G$27:G$28)*(MONTH($A65)-1)/12)*$C65 -> -0.2741654942 | J65: =(SUM('3.0 LRAMVA Register'!H$11:H$21)+SUM('3.0 LRAMVA Register'!H$27:H$28)*(MONTH($A65)-1)/12)*$C65 -> 0 | K65: =(SUM('3.0 LRAMVA Register'!I$11:I$21)+SUM('3.0 LRAMVA Register'!I$27:I$28)*(MONTH($A65)-1)/12)*$C65 -> 0 | L65: =(SUM('3.0 LRAMVA Register'!J$11:J$21)+SUM('3.0 LRAMVA Register'!J$27:J$28)*(MONTH($A65)-1)/12)*$C65 -> 0 | M65: =(SUM('3.0 LRAMVA Register'!K$11:K$21)+SUM('3.0 LRAMVA Register'!K$27:K$28)*(MONTH($A65)-1)/12)*$C65 -> 0 | N65: 52.77088974
A66: 2013-03-01 | B66: Q1 | C66: =H$20/12 -> 0.001225 | D66: =(SUM('3.0 LRAMVA Register'!B$11:B$21)+SUM('3.0 LRAMVA Register'!B$27:B$28)*(MONTH($A66)-1)/12)*$C66 -> 43.70099695 | E66: =(SUM('3.0 LRAMVA Register'!C$11:C$21)+SUM('3.0 LRAMVA Register'!C$27:C$28)*(MONTH($A66)-1)/12)*$C66 -> 7.971081306 | F66: =(SUM('3.0 LRAMVA Register'!D$11:D$21)+SUM('3.0 LRAMVA Register'!D$27:D$28)*(MONTH($A66)-1)/12)*$C66 -> 1.326618532 | G66: =(SUM('3.0 LRAMVA Register'!E$11:E$21)+SUM('3.0 LRAMVA Register'!E$27:E$28)*(MONTH($A66)-1)/12)*$C66 -> -0.4133380708 | H66: =(SUM('3.0 LRAMVA Register'!F$11:F$21)+SUM('3.0 LRAMVA Register'!F$27:F$28)*(MONTH($A66)-1)/12)*$C66 -> -0.04980553958 | I66: =(SUM('3.0 LRAMVA Register'!G$11:G$21)+SUM('3.0 LRAMVA Register'!G$27:G$28)*(MONTH($A66)-1)/12)*$C66 -> -0.5483309883 | J66: =(SUM('3.0 LRAMVA Register'!H$11:H$21)+SUM('3.0 LRAMVA Register'!H$27:H$28)*(MONTH($A66)-1)/12)*$C66 -> 0 | K66: =(SUM('3.0 LRAMVA Register'!I$11:I$21)+SUM('3.0 LRAMVA Register'!I$27:I$28)*(MONTH($A66)-1)/12)*$C66 -> 0 | L66: =(SUM('3.0 LRAMVA Register'!J$11:J$21)+SUM('3.0 LRAMVA Register'!J$27:J$28)*(MONTH($A66)-1)/12)*$C66 -> 0 | M66: =(SUM('3.0 LRAMVA Register'!K$11:K$21)+SUM('3.0 LRAMVA Register'!K$27:K$28)*(MONTH($A66)-1)/12)*$C66 -> 0 | N66: 51.98722219
A67: 2013-04-01 | B67: Q2 | C67: =H$21/12 -> 0.001225 | D67: =(SUM('3.0 LRAMVA Register'!B$11:B$21)+SUM('3.0 LRAMVA Register'!B$27:B$28)*(MONTH($A67)-1)/12)*$C67 -> 43.22480846 | E67: =(SUM('3.0 LRAMVA Register'!C$11:C$21)+SUM('3.0 LRAMVA Register'!C$27:C$28)*(MONTH($A67)-1)/12)*$C67 -> 8.151407512 | F67: =(SUM('3.0 LRAMVA Register'!D$11:D$21)+SUM('3.0 LRAMVA Register'!D$27:D$28)*(MONTH($A67)-1)/12)*$C67 -> 1.344550561 | G67: =(SUM('3.0 LRAMVA Register'!E$11:E$21)+SUM('3.0 LRAMVA Register'!E$27:E$28)*(MONTH($A67)-1)/12)*$C67 -> -0.6200071062 | H67: =(SUM('3.0 LRAMVA Register'!F$11:F$21)+SUM('3.0 LRAMVA Register'!F$27:F$28)*(MONTH($A67)-1)/12)*$C67 -> -0.07470830937 | I67: =(SUM('3.0 LRAMVA Register'!G$11:G$21)+SUM('3.0 LRAMVA Register'!G$27:G$28)*(MONTH($A67)-1)/12)*$C67 -> -0.8224964825 | J67: =(SUM('3.0 LRAMVA Register'!H$11:H$21)+SUM('3.0 LRAMVA Register'!H$27:H$28)*(MONTH($A67)-1)/12)*$C67 -> 0 | K67: =(SUM('3.0 LRAMVA Register'!I$11:I$21)+SUM('3.0 LRAMVA Register'!I$27:I$28)*(MONTH($A67)-1)/12)*$C67 -> 0 | L67: =(SUM('3.0 LRAMVA Register'!J$11:J$21)+SUM('3.0 LRAMVA Register'!J$27:J$28)*(MONTH($A67)-1)/12)*$C67 -> 0 | M67: =(SUM('3.0 LRAMVA Register'!K$11:K$21)+SUM('3.0 LRAMVA Register'!K$27:K$28)*(MONTH($A67)-1)/12)*$C67 -> 0 | N67: 51.20355463
A68: Total for rate year 2012 | D68: =SUM(D55:D67) -> 429.2014983 | E68: =SUM(E55:E67) -> 74.67993592 | F68: 12.36975966 | G68: -1.240014212 | H68: -0.1494166187 | I68: -1.644992965 | J68: 0 | K68: =SUM(K55:K67) -> 0 | L68: 0 | M68: 0 | N68: 513.2167701
A69: Amount Cleared | N69: =SUM(D69:M69) -> 0
A70: Opening Balance for rate year 2013 | D70: =D68+D69 -> 429.2014983 | E70: 74.67993592 | F70: 12.36975966 | G70: -1.240014212 | H70: -0.1494166187 | I70: -1.644992965 | J70: 0 | K70: 0 | L70: 0 | M70: 0 | N70: =N68+N69 -> 513.2167701
A71: 2013-05-01 | B71: Q2 | C71: =H$21/12 -> 0.001225 | D71: =(SUM('3.0 LRAMVA Register'!B$11:B$21)+SUM('3.0 LRAMVA Register'!B$27:B$28)*(MONTH($A71)-1)/12)*$C71 -> 42.74861996 | E71: =(SUM('3.0 LRAMVA Register'!C$11:C$21)+SUM('3.0 LRAMVA Register'!C$27:C$28)*(MONTH($A71)-1)/12)*$C71 -> 8.331733719 | F71: =(SUM('3.0 LRAMVA Register'!D$11:D$21)+SUM('3.0 LRAMVA Register'!D$27:D$28)*(MONTH($A71)-1)/12)*$C71 -> 1.362482591 | G71: =(SUM('3.0 LRAMVA Register'!E$11:E$21)+SUM('3.0 LRAMVA Register'!E$27:E$28)*(MONTH($A71)-1)/12)*$C71 -> -0.8266761417 | H71: =(SUM('3.0 LRAMVA Register'!F$11:F$21)+SUM('3.0 LRAMVA Register'!F$27:F$28)*(MONTH($A71)-1)/12)*$C71 -> -0.09961107917 | I71: =(SUM('3.0 LRAMVA Register'!G$11:G$21)+SUM('3.0 LRAMVA Register'!G$27:G$28)*(MONTH($A71)-1)/12)*$C71 -> -1.096661977 | J71: =(SUM('3.0 LRAMVA Register'!H$11:H$21)+SUM('3.0 LRAMVA Register'!H$27:H$28)*(MONTH($A71)-1)/12)*$C71 -> 0 | K71: =(SUM('3.0 LRAMVA Register'!I$11:I$21)+SUM('3.0 LRAMVA Register'!I$27:I$28)*(MONTH($A71)-1)/12)*$C71 -> 0 | L71: =(SUM('3.0 LRAMVA Register'!J$11:J$21)+SUM('3.0 LRAMVA Register'!J$27:J$28)*(MONTH($A71)-1)/12)*$C71 -> 0 | M71: =(SUM('3.0 LRAMVA Register'!K$11:K$21)+SUM('3.0 LRAMVA Register'!K$27:K$28)*(MONTH($A71)-1)/12)*$C71 -> 0 | N71: =SUM(D71:M71) -> 50.41988708
A72: 2013-06-01 | B72: Q2 | C72: =H$21/12 -> 0.001225 | D72: =(SUM('3.0 LRAMVA Register'!B$11:B$21)+SUM('3.0 LRAMVA Register'!B$27:B$28)*(MONTH($A72)-1)/12)*$C72 -> 42.27243147 | E72: =(SUM('3.0 LRAMVA Register'!C$11:C$21)+SUM('3.0 LRAMVA Register'!C$27:C$28)*(MONTH($A72)-1)/12)*$C72 -> 8.512059926 | F72: =(SUM('3.0 LRAMVA Register'!D$11:D$21)+SUM('3.0 LRAMVA Register'!D$27:D$28)*(MONTH($A72)-1)/12)*$C72 -> 1.380414621 | G72: =(SUM('3.0 LRAMVA Register'!E$11:E$21)+SUM('3.0 LRAMVA Register'!E$27:E$28)*(MONTH($A72)-1)/12)*$C72 -> -1.033345177 | H72: =(SUM('3.0 LRAMVA Register'!F$11:F$21)+SUM('3.0 LRAMVA Register'!F$27:F$28)*(MONTH($A72)-1)/12)*$C72 -> -0.124513849 | I72: =(SUM('3.0 LRAMVA Register'!G$11:G$21)+SUM('3.0 LRAMVA Register'!G$27:G$28)*(MONTH($A72)-1)/12)*$C72 -> -1.370827471 | J72: =(SUM('3.0 LRAMVA Register'!H$11:H$21)+SUM('3.0 LRAMVA Register'!H$27:H$28)*(MONTH($A72)-1)/12)*$C72 -> 0 | K72: =(SUM('3.0 LRAMVA Register'!I$11:I$21)+SUM('3.0 LRAMVA Register'!I$27:I$28)*(MONTH($A72)-1)/12)*$C72 -> 0 | L72: =(SUM('3.0 LRAMVA Register'!J$11:J$21)+SUM('3.0 LRAMVA Register'!J$27:J$28)*(MONTH($A72)-1)/12)*$C72 -> 0 | M72: =(SUM('3.0 LRAMVA Register'!K$11:K$21)+SUM('3.0 LRAMVA Register'!K$27:K$28)*(MONTH($A72)-1)/12)*$C72 -> 0 | N72: 49.63621952
A73: 2013-07-01 | B73: Q3 | C73: =H$22/12 -> 0.001225 | D73: =(SUM('3.0 LRAMVA Register'!B$11:B$21)+SUM('3.0 LRAMVA Register'!B$27:B$28)*(MONTH($A73)-1)/12)*$C73 -> 41.79624298 | E73: =(SUM('3.0 LRAMVA Register'!C$11:C$21)+SUM('3.0 LRAMVA Register'!C$27:C$28)*(MONTH($A73)-1)/12)*$C73 -> 8.692386132 | F73: =(SUM('3.0 LRAMVA Register'!D$11:D$21)+SUM('3.0 LRAMVA Register'!D$27:D$28)*(MONTH($A73)-1)/12)*$C73 -> 1.398346651 | G73: =(SUM('3.0 LRAMVA Register'!E$11:E$21)+SUM('3.0 LRAMVA Register'!E$27:E$28)*(MONTH($A73)-1)/12)*$C73 -> -1.240014212 | H73: =(SUM('3.0 LRAMVA Register'!F$11:F$21)+SUM('3.0 LRAMVA Register'!F$27:F$28)*(MONTH($A73)-1)/12)*$C73 -> -0.1494166187 | I73: =(SUM('3.0 LRAMVA Register'!G$11:G$21)+SUM('3.0 LRAMVA Register'!G$27:G$28)*(MONTH($A73)-1)/12)*$C73 -> -1.644992965 | J73: =(SUM('3.0 LRAMVA Register'!H$11:H$21)+SUM('3.0 LRAMVA Register'!H$27:H$28)*(MONTH($A73)-1)/12)*$C73 -> 0 | K73: =(SUM('3.0 LRAMVA Register'!I$11:I$21)+SUM('3.0 LRAMVA Register'!I$27:I$28)*(MONTH($A73)-1)/12)*$C73 -> 0 | L73: =(SUM('3.0 LRAMVA Register'!J$11:J$21)+SUM('3.0 LRAMVA Register'!J$27:J$28)*(MONTH($A73)-1)/12)*$C73 -> 0 | M73: =(SUM('3.0 LRAMVA Register'!K$11:K$21)+SUM('3.0 LRAMVA Register'!K$27:K$28)*(MONTH($A73)-1)/12)*$C73 -> 0 | N73: 48.85255197
A74: 2013-08-01 | B74: Q3 | C74: =H$22/12 -> 0.001225 | D74: =(SUM('3.0 LRAMVA Register'!B$11:B$21)+SUM('3.0 LRAMVA Register'!B$27:B$28)*(MONTH($A74)-1)/12)*$C74 -> 41.32005449 | E74: =(SUM('3.0 LRAMVA Register'!C$11:C$21)+SUM('3.0 LRAMVA Register'!C$27:C$28)*(MONTH($A74)-1)/12)*$C74 -> 8.872712339 | F74: =(SUM('3.0 LRAMVA Register'!D$11:D$21)+SUM('3.0 LRAMVA Register'!D$27:D$28)*(MONTH($A74)-1)/12)*$C74 -> 1.416278681 | G74: =(SUM('3.0 LRAMVA Register'!E$11:E$21)+SUM('3.0 LRAMVA Register'!E$27:E$28)*(MONTH($A74)-1)/12)*$C74 -> -1.446683248 | H74: =(SUM('3.0 LRAMVA Register'!F$11:F$21)+SUM('3.0 LRAMVA Register'!F$27:F$28)*(MONTH($A74)-1)/12)*$C74 -> -0.1743193885 | I74: =(SUM('3.0 LRAMVA Register'!G$11:G$21)+SUM('3.0 LRAMVA Register'!G$27:G$28)*(MONTH($A74)-1)/12)*$C74 -> -1.919158459 | J74: =(SUM('3.0 LRAMVA Register'!H$11:H$21)+SUM('3.0 LRAMVA Register'!H$27:H$28)*(MONTH($A74)-1)/12)*$C74 -> 0 | K74: =(SUM('3.0 LRAMVA Register'!I$11:I$21)+SUM('3.0 LRAMVA Register'!I$27:I$28)*(MONTH($A74)-1)/12)*$C74 -> 0 | L74: =(SUM('3.0 LRAMVA Register'!J$11:J$21)+SUM('3.0 LRAMVA Register'!J$27:J$28)*(MONTH($A74)-1)/12)*$C74 -> 0 | M74: =(SUM('3.0 LRAMVA Register'!K$11:K$21)+SUM('3.0 LRAMVA Register'!K$27:K$28)*(MONTH($A74)-1)/12)*$C74 -> 0 | N74: 48.06888441
A75: 2013-09-01 | B75: Q3 | C75: =H$22/12 -> 0.001225 | D75: =(SUM('3.0 LRAMVA Register'!B$11:B$21)+SUM('3.0 LRAMVA Register'!B$27:B$28)*(MONTH($A75)-1)/12)*$C75 -> 40.84386599 | E75: =(SUM('3.0 LRAMVA Register'!C$11:C$21)+SUM('3.0 LRAMVA Register'!C$27:C$28)*(MONTH($A75)-1)/12)*$C75 -> 9.053038546 | F75: =(SUM('3.0 LRAMVA Register'!D$11:D$21)+SUM('3.0 LRAMVA Register'!D$27:D$28)*(MONTH($A75)-1)/12)*$C75 -> 1.43421071 | G75: =(SUM('3.0 LRAMVA Register'!E$11:E$21)+SUM('3.0 LRAMVA Register'!E$27:E$28)*(MONTH($A75)-1)/12)*$C75 -> -1.653352283 | H75: =(SUM('3.0 LRAMVA Register'!F$11:F$21)+SUM('3.0 LRAMVA Register'!F$27:F$28)*(MONTH($A75)-1)/12)*$C75 -> -0.1992221583 | I75: =(SUM('3.0 LRAMVA Register'!G$11:G$21)+SUM('3.0 LRAMVA Register'!G$27:G$28)*(MONTH($A75)-1)/12)*$C75 -> -2.193323953 | J75: =(SUM('3.0 LRAMVA Register'!H$11:H$21)+SUM('3.0 LRAMVA Register'!H$27:H$28)*(MONTH($A75)-1)/12)*$C75 -> 0 | K75: =(SUM('3.0 LRAMVA Register'!I$11:I$21)+SUM('3.0 LRAMVA Register'!I$27:I$28)*(MONTH($A75)-1)/12)*$C75 -> 0 | L75: =(SUM('3.0 LRAMVA Register'!J$11:J$21)+SUM('3.0 LRAMVA Register'!J$27:J$28)*(MONTH($A75)-1)/12)*$C75 -> 0 | M75: =(SUM('3.0 LRAMVA Register'!K$11:K$21)+SUM('3.0 LRAMVA Register'!K$27:K$28)*(MONTH($A75)-1)/12)*$C75 -> 0 | N75: 47.28521686
A76: 2013-10-01 | B76: Q4 | C76: =H$23/12 -> 0.001225 | D76: =(SUM('3.0 LRAMVA Register'!B$11:B$21)+SUM('3.0 LRAMVA Register'!B$27:B$28)*(MONTH($A76)-1)/12)*$C76 -> 40.3676775 | E76: =(SUM('3.0 LRAMVA Register'!C$11:C$21)+SUM('3.0 LRAMVA Register'!C$27:C$28)*(MONTH($A76)-1)/12)*$C76 -> 9.233364752 | F76: =(SUM('3.0 LRAMVA Register'!D$11:D$21)+SUM('3.0 LRAMVA Register'!D$27:D$28)*(MONTH($A76)-1)/12)*$C76 -> 1.45214274 | G76: =(SUM('3.0 LRAMVA Register'!E$11:E$21)+SUM('3.0 LRAMVA Register'!E$27:E$28)*(MONTH($A76)-1)/12)*$C76 -> -1.860021319 | H76: =(SUM('3.0 LRAMVA Register'!F$11:F$21)+SUM('3.0 LRAMVA Register'!F$27:F$28)*(MONTH($A76)-1)/12)*$C76 -> -0.2241249281 | I76: =(SUM('3.0 LRAMVA Register'!G$11:G$21)+SUM('3.0 LRAMVA Register'!G$27:G$28)*(MONTH($A76)-1)/12)*$C76 -> -2.467489447 | J76: =(SUM('3.0 LRAMVA Register'!H$11:H$21)+SUM('3.0 LRAMVA Register'!H$27:H$28)*(MONTH($A76)-1)/12)*$C76 -> 0 | K76: =(SUM('3.0 LRAMVA Register'!I$11:I$21)+SUM('3.0 LRAMVA Register'!I$27:I$28)*(MONTH($A76)-1)/12)*$C76 -> 0 | L76: =(SUM('3.0 LRAMVA Register'!J$11:J$21)+SUM('3.0 LRAMVA Register'!J$27:J$28)*(MONTH($A76)-1)/12)*$C76 -> 0 | M76: =(SUM('3.0 LRAMVA Register'!K$11:K$21)+SUM('3.0 LRAMVA Register'!K$27:K$28)*(MONTH($A76)-1)/12)*$C76 -> 0 | N76: 46.5015493
A77: 2013-11-01 | B77: Q4 | C77: =H$23/12 -> 0.001225 | D77: =(SUM('3.0 LRAMVA Register'!B$11:B$21)+SUM('3.0 LRAMVA Register'!B$27:B$28)*(MONTH($A77)-1)/12)*$C77 -> 39.89148901 | E77: =(SUM('3.0 LRAMVA Register'!C$11:C$21)+SUM('3.0 LRAMVA Register'!C$27:C$28)*(MONTH($A77)-1)/12)*$C77 -> 9.413690959 | F77: =(SUM('3.0 LRAMVA Register'!D$11:D$21)+SUM('3.0 LRAMVA Register'!D$27:D$28)*(MONTH($A77)-1)/12)*$C77 -> 1.47007477 | G77: =(SUM('3.0 LRAMVA Register'!E$11:E$21)+SUM('3.0 LRAMVA Register'!E$27:E$28)*(MONTH($A77)-1)/12)*$C77 -> -2.066690354 | H77: =(SUM('3.0 LRAMVA Register'!F$11:F$21)+SUM('3.0 LRAMVA Register'!F$27:F$28)*(MONTH($A77)-1)/12)*$C77 -> -0.2490276979 | I77: =(SUM('3.0 LRAMVA Register'!G$11:G$21)+SUM('3.0 LRAMVA Register'!G$27:G$28)*(MONTH($A77)-1)/12)*$C77 -> -2.741654942 | J77: =(SUM('3.0 LRAMVA Register'!H$11:H$21)+SUM('3.0 LRAMVA Register'!H$27:H$28)*(MONTH($A77)-1)/12)*$C77 -> 0 | K77: =(SUM('3.0 LRAMVA Register'!I$11:I$21)+SUM('3.0 LRAMVA Register'!I$27:I$28)*(MONTH($A77)-1)/12)*$C77 -> 0 | L77: =(SUM('3.0 LRAMVA Register'!J$11:J$21)+SUM('3.0 LRAMVA Register'!J$27:J$28)*(MONTH($A77)-1)/12)*$C77 -> 0 | M77: =(SUM('3.0 LRAMVA Register'!K$11:K$21)+SUM('3.0 LRAMVA Register'!K$27:K$28)*(MONTH($A77)-1)/12)*$C77 -> 0 | N77: 45.71788174
A78: 2013-12-01 | B78: Q4 | C78: =H$23/12 -> 0.001225 | D78: =(SUM('3.0 LRAMVA Register'!B$11:B$21)+SUM('3.0 LRAMVA Register'!B$27:B$28)*(MONTH($A78)-1)/12)*$C78 -> 39.41530052 | E78: =(SUM('3.0 LRAMVA Register'!C$11:C$21)+SUM('3.0 LRAMVA Register'!C$27:C$28)*(MONTH($A78)-1)/12)*$C78 -> 9.594017166 | F78: =(SUM('3.0 LRAMVA Register'!D$11:D$21)+SUM('3.0 LRAMVA Register'!D$27:D$28)*(MONTH($A78)-1)/12)*$C78 -> 1.4880068 | G78: =(SUM('3.0 LRAMVA Register'!E$11:E$21)+SUM('3.0 LRAMVA Register'!E$27:E$28)*(MONTH($A78)-1)/12)*$C78 -> -2.27335939 | H78: =(SUM('3.0 LRAMVA Register'!F$11:F$21)+SUM('3.0 LRAMVA Register'!F$27:F$28)*(MONTH($A78)-1)/12)*$C78 -> -0.2739304677 | I78: =(SUM('3.0 LRAMVA Register'!G$11:G$21)+SUM('3.0 LRAMVA Register'!G$27:G$28)*(MONTH($A78)-1)/12)*$C78 -> -3.015820436 | J78: =(SUM('3.0 LRAMVA Register'!H$11:H$21)+SUM('3.0 LRAMVA Register'!H$27:H$28)*(MONTH($A78)-1)/12)*$C78 -> 0 | K78: =(SUM('3.0 LRAMVA Register'!I$11:I$21)+SUM('3.0 LRAMVA Register'!I$27:I$28)*(MONTH($A78)-1)/12)*$C78 -> 0 | L78: =(SUM('3.0 LRAMVA Register'!J$11:J$21)+SUM('3.0 LRAMVA Register'!J$27:J$28)*(MONTH($A78)-1)/12)*$C78 -> 0 | M78: =(SUM('3.0 LRAMVA Register'!K$11:K$21)+SUM('3.0 LRAMVA Register'!K$27:K$28)*(MONTH($A78)-1)/12)*$C78 -> 0 | N78: 44.93421419
A79: 2014-01-01 | B79: Q1 | C79: =H$24/12 -> 0.001225 | D79: =(SUM('3.0 LRAMVA Register'!B$11:B$29)+SUM('3.0 LRAMVA Register'!B$35:B$36)*(MONTH($A79)-1)/12)*$C79 -> 81.75645251 | E79: =(SUM('3.0 LRAMVA Register'!C$11:C$29)+SUM('3.0 LRAMVA Register'!C$35:C$36)*(MONTH($A79)-1)/12)*$C79 -> 17.31091847 | F79: =(SUM('3.0 LRAMVA Register'!D$11:D$29)+SUM('3.0 LRAMVA Register'!D$35:D$36)*(MONTH($A79)-1)/12)*$C79 -> 4.125395955 | G79: =(SUM('3.0 LRAMVA Register'!E$11:E$29)+SUM('3.0 LRAMVA Register'!E$35:E$36)*(MONTH($A79)-1)/12)*$C79 -> -2.480028425 | H79: =(SUM('3.0 LRAMVA Register'!F$11:F$29)+SUM('3.0 LRAMVA Register'!F$35:F$36)*(MONTH($A79)-1)/12)*$C79 -> -0.2988332375 | I79: =(SUM('3.0 LRAMVA Register'!G$11:G$29)+SUM('3.0 LRAMVA Register'!G$35:G$36)*(MONTH($A79)-1)/12)*$C79 -> -3.28998593 | J79: =(SUM('3.0 LRAMVA Register'!H$11:H$29)+SUM('3.0 LRAMVA Register'!H$35:H$36)*(MONTH($A79)-1)/12)*$C79 -> 0 | K79: =(SUM('3.0 LRAMVA Register'!I$11:I$29)+SUM('3.0 LRAMVA Register'!I$35:I$36)*(MONTH($A79)-1)/12)*$C79 -> 0 | L79: =(SUM('3.0 LRAMVA Register'!J$11:J$29)+SUM('3.0 LRAMVA Register'!J$35:J$36)*(MONTH($A79)-1)/12)*$C79 -> 0 | M79: =(SUM('3.0 LRAMVA Register'!K$11:K$29)+SUM('3.0 LRAMVA Register'!K$35:K$36)*(MONTH($A79)-1)/12)*$C79 -> 0 | N79: 97.12391934
A80: 2014-02-01 | B80: Q1 | C80: =H$24/12 -> 0.001225 | D80: =(SUM('3.0 LRAMVA Register'!B$11:B$29)+SUM('3.0 LRAMVA Register'!B$35:B$36)*(MONTH($A80)-1)/12)*$C80 -> 82.47915504 | E80: =(SUM('3.0 LRAMVA Register'!C$11:C$29)+SUM('3.0 LRAMVA Register'!C$35:C$36)*(MONTH($A80)-1)/12)*$C80 -> 17.68503104 | F80: =(SUM('3.0 LRAMVA Register'!D$11:D$29)+SUM('3.0 LRAMVA Register'!D$35:D$36)*(MONTH($A80)-1)/12)*$C80 -> 4.261140258 | G80: =(SUM('3.0 LRAMVA Register'!E$11:E$29)+SUM('3.0 LRAMVA Register'!E$35:E$36)*(MONTH($A80)-1)/12)*$C80 -> -2.689128861 | H80: =(SUM('3.0 LRAMVA Register'!F$11:F$29)+SUM('3.0 LRAMVA Register'!F$35:F$36)*(MONTH($A80)-1)/12)*$C80 -> -0.3240846219 | I80: =(SUM('3.0 LRAMVA Register'!G$11:G$29)+SUM('3.0 LRAMVA Register'!G$35:G$36)*(MONTH($A80)-1)/12)*$C80 -> -3.567989921 | J80: =(SUM('3.0 LRAMVA Register'!H$11:H$29)+SUM('3.0 LRAMVA Register'!H$35:H$36)*(MONTH($A80)-1)/12)*$C80 -> 0 | K80: =(SUM('3.0 LRAMVA Register'!I$11:I$29)+SUM('3.0 LRAMVA Register'!I$35:I$36)*(MONTH($A80)-1)/12)*$C80 -> 0 | L80: =(SUM('3.0 LRAMVA Register'!J$11:J$29)+SUM('3.0 LRAMVA Register'!J$35:J$36)*(MONTH($A80)-1)/12)*$C80 -> 0 | M80: =(SUM('3.0 LRAMVA Register'!K$11:K$29)+SUM('3.0 LRAMVA Register'!K$35:K$36)*(MONTH($A80)-1)/12)*$C80 -> 0 | N80: 97.84412293
A81: 2014-03-01 | B81: Q1 | C81: =H$24/12 -> 0.001225 | D81: =(SUM('3.0 LRAMVA Register'!B$11:B$29)+SUM('3.0 LRAMVA Register'!B$35:B$36)*(MONTH($A81)-1)/12)*$C81 -> 83.20185757 | E81: =(SUM('3.0 LRAMVA Register'!C$11:C$29)+SUM('3.0 LRAMVA Register'!C$35:C$36)*(MONTH($A81)-1)/12)*$C81 -> 18.0591436 | F81: =(SUM('3.0 LRAMVA Register'!D$11:D$29)+SUM('3.0 LRAMVA Register'!D$35:D$36)*(MONTH($A81)-1)/12)*$C81 -> 4.396884562 | G81: =(SUM('3.0 LRAMVA Register'!E$11:E$29)+SUM('3.0 LRAMVA Register'!E$35:E$36)*(MONTH($A81)-1)/12)*$C81 -> -2.898229297 | H81: =(SUM('3.0 LRAMVA Register'!F$11:F$29)+SUM('3.0 LRAMVA Register'!F$35:F$36)*(MONTH($A81)-1)/12)*$C81 -> -0.3493360062 | I81: =(SUM('3.0 LRAMVA Register'!G$11:G$29)+SUM('3.0 LRAMVA Register'!G$35:G$36)*(MONTH($A81)-1)/12)*$C81 -> -3.845993912 | J81: =(SUM('3.0 LRAMVA Register'!H$11:H$29)+SUM('3.0 LRAMVA Register'!H$35:H$36)*(MONTH($A81)-1)/12)*$C81 -> 0 | K81: =(SUM('3.0 LRAMVA Register'!I$11:I$29)+SUM('3.0 LRAMVA Register'!I$35:I$36)*(MONTH($A81)-1)/12)*$C81 -> 0 | L81: =(SUM('3.0 LRAMVA Register'!J$11:J$29)+SUM('3.0 LRAMVA Register'!J$35:J$36)*(MONTH($A81)-1)/12)*$C81 -> 0 | M81: =(SUM('3.0 LRAMVA Register'!K$11:K$29)+SUM('3.0 LRAMVA Register'!K$35:K$36)*(MONTH($A81)-1)/12)*$C81 -> 0 | N81: 98.56432652
A82: 2014-04-01 | B82: Q2 | C82: =H$25/12 -> 0.001225 | D82: =(SUM('3.0 LRAMVA Register'!B$11:B$29)+SUM('3.0 LRAMVA Register'!B$35:B$36)*(MONTH($A82)-1)/12)*$C82 -> 83.9245601 | E82: =(SUM('3.0 LRAMVA Register'!C$11:C$29)+SUM('3.0 LRAMVA Register'!C$35:C$36)*(MONTH($A82)-1)/12)*$C82 -> 18.43325617 | F82: =(SUM('3.0 LRAMVA Register'!D$11:D$29)+SUM('3.0 LRAMVA Register'!D$35:D$36)*(MONTH($A82)-1)/12)*$C82 -> 4.532628865 | G82: =(SUM('3.0 LRAMVA Register'!E$11:E$29)+SUM('3.0 LRAMVA Register'!E$35:E$36)*(MONTH($A82)-1)/12)*$C82 -> -3.107329733 | H82: =(SUM('3.0 LRAMVA Register'!F$11:F$29)+SUM('3.0 LRAMVA Register'!F$35:F$36)*(MONTH($A82)-1)/12)*$C82 -> -0.3745873906 | I82: =(SUM('3.0 LRAMVA Register'!G$11:G$29)+SUM('3.0 LRAMVA Register'!G$35:G$36)*(MONTH($A82)-1)/12)*$C82 -> -4.123997903 | J82: =(SUM('3.0 LRAMVA Register'!H$11:H$29)+SUM('3.0 LRAMVA Register'!H$35:H$36)*(MONTH($A82)-1)/12)*$C82 -> 0 | K82: =(SUM('3.0 LRAMVA Register'!I$11:I$29)+SUM('3.0 LRAMVA Register'!I$35:I$36)*(MONTH($A82)-1)/12)*$C82 -> 0 | L82: =(SUM('3.0 LRAMVA Register'!J$11:J$29)+SUM('3.0 LRAMVA Register'!J$35:J$36)*(MONTH($A82)-1)/12)*$C82 -> 0 | M82: =(SUM('3.0 LRAMVA Register'!K$11:K$29)+SUM('3.0 LRAMVA Register'!K$35:K$36)*(MONTH($A82)-1)/12)*$C82 -> 0 | N82: 99.28453011
A83: Total for rate year 2013 | D83: =SUM(D70:D82) -> 1089.219205 | E83: =SUM(E70:E82) -> 217.8712887 | F83: =SUM(F70:F82) -> 41.08776687 | G83: =SUM(G70:G82) -> -24.81487265 | H83: =SUM(H70:H82) -> -2.990424062 | I83: =SUM(I70:I82) -> -32.92289028 | J83: =SUM(J70:J82) -> 0 | K83: 0 | L83: 0 | M83: 0 | N83: =SUM(N70:N82) -> 1287.450074
A84: Amount Cleared | N84: =SUM(D84:M84) -> 0
A85: Opening Balance for rate year 2014 | D85: =D83+D84 -> 1089.219205 | E85: =E83+E84 -> 217.8712887 | F85: 41.08776687 | G85: -24.81487265 | H85: -2.990424062 | I85: -32.92289028 | J85: 0 | K85: 0 | L85: 0 | M85: 0 | N85: =N83+N84 -> 1287.450074
A86: 2014-05-01 | B86: Q2 | C86: =H$25/12 -> 0.001225 | D86: =(SUM('3.0 LRAMVA Register'!B$11:B$29)+SUM('3.0 LRAMVA Register'!B$35:B$36)*(MONTH($A86)-1)/12)*$C86 -> 84.64726263 | E86: =(SUM('3.0 LRAMVA Register'!C$11:C$29)+SUM('3.0 LRAMVA Register'!C$35:C$36)*(MONTH($A86)-1)/12)*$C86 -> 18.80736873 | F86: =(SUM('3.0 LRAMVA Register'!D$11:D$29)+SUM('3.0 LRAMVA Register'!D$35:D$36)*(MONTH($A86)-1)/12)*$C86 -> 4.668373168 | G86: =(SUM('3.0 LRAMVA Register'!E$11:E$29)+SUM('3.0 LRAMVA Register'!E$35:E$36)*(MONTH($A86)-1)/12)*$C86 -> -3.316430168 | H86: =(SUM('3.0 LRAMVA Register'!F$11:F$29)+SUM('3.0 LRAMVA Register'!F$35:F$36)*(MONTH($A86)-1)/12)*$C86 -> -0.399838775 | I86: =(SUM('3.0 LRAMVA Register'!G$11:G$29)+SUM('3.0 LRAMVA Register'!G$35:G$36)*(MONTH($A86)-1)/12)*$C86 -> -4.402001893 | J86: =(SUM('3.0 LRAMVA Register'!H$11:H$29)+SUM('3.0 LRAMVA Register'!H$35:H$36)*(MONTH($A86)-1)/12)*$C86 -> 0 | K86: =(SUM('3.0 LRAMVA Register'!I$11:I$29)+SUM('3.0 LRAMVA Register'!I$35:I$36)*(MONTH($A86)-1)/12)*$C86 -> 0 | L86: =(SUM('3.0 LRAMVA Register'!J$11:J$29)+SUM('3.0 LRAMVA Register'!J$35:J$36)*(MONTH($A86)-1)/12)*$C86 -> 0 | M86: =(SUM('3.0 LRAMVA Register'!K$11:K$29)+SUM('3.0 LRAMVA Register'!K$35:K$36)*(MONTH($A86)-1)/12)*$C86 -> 0 | N86: =SUM(D86:M86) -> 100.0047337
A87: 2014-06-01 | B87: Q2 | C87: =H$25/12 -> 0.001225 | D87: =(SUM('3.0 LRAMVA Register'!B$11:B$29)+SUM('3.0 LRAMVA Register'!B$35:B$36)*(MONTH($A87)-1)/12)*$C87 -> 85.36996516 | E87: =(SUM('3.0 LRAMVA Register'!C$11:C$29)+SUM('3.0 LRAMVA Register'!C$35:C$36)*(MONTH($A87)-1)/12)*$C87 -> 19.1814813 | F87: =(SUM('3.0 LRAMVA Register'!D$11:D$29)+SUM('3.0 LRAMVA Register'!D$35:D$36)*(MONTH($A87)-1)/12)*$C87 -> 4.804117472 | G87: =(SUM('3.0 LRAMVA Register'!E$11:E$29)+SUM('3.0 LRAMVA Register'!E$35:E$36)*(MONTH($A87)-1)/12)*$C87 -> -3.525530604 | H87: =(SUM('3.0 LRAMVA Register'!F$11:F$29)+SUM('3.0 LRAMVA Register'!F$35:F$36)*(MONTH($A87)-1)/12)*$C87 -> -0.4250901594 | I87: =(SUM('3.0 LRAMVA Register'!G$11:G$29)+SUM('3.0 LRAMVA Register'!G$35:G$36)*(MONTH($A87)-1)/12)*$C87 -> -4.680005884 | J87: =(SUM('3.0 LRAMVA Register'!H$11:H$29)+SUM('3.0 LRAMVA Register'!H$35:H$36)*(MONTH($A87)-1)/12)*$C87 -> 0 | K87: =(SUM('3.0 LRAMVA Register'!I$11:I$29)+SUM('3.0 LRAMVA Register'!I$35:I$36)*(MONTH($A87)-1)/12)*$C87 -> 0 | L87: =(SUM('3.0 LRAMVA Register'!J$11:J$29)+SUM('3.0 LRAMVA Register'!J$35:J$36)*(MONTH($A87)-1)/12)*$C87 -> 0 | M87: =(SUM('3.0 LRAMVA Register'!K$11:K$29)+SUM('3.0 LRAMVA Register'!K$35:K$36)*(MONTH($A87)-1)/12)*$C87 -> 0 | N87: 100.7249373
A88: 2014-07-01 | B88: Q3 | C88: =H$26/12 -> 0.001225 | D88: =(SUM('3.0 LRAMVA Register'!B$11:B$29)+SUM('3.0 LRAMVA Register'!B$35:B$36)*(MONTH($A88)-1)/12)*$C88 -> 86.09266769 | E88: =(SUM('3.0 LRAMVA Register'!C$11:C$29)+SUM('3.0 LRAMVA Register'!C$35:C$36)*(MONTH($A88)-1)/12)*$C88 -> 19.55559386 | F88: =(SUM('3.0 LRAMVA Register'!D$11:D$29)+SUM('3.0 LRAMVA Register'!D$35:D$36)*(MONTH($A88)-1)/12)*$C88 -> 4.939861775 | G88: =(SUM('3.0 LRAMVA Register'!E$11:E$29)+SUM('3.0 LRAMVA Register'!E$35:E$36)*(MONTH($A88)-1)/12)*$C88 -> -3.73463104 | H88: =(SUM('3.0 LRAMVA Register'!F$11:F$29)+SUM('3.0 LRAMVA Register'!F$35:F$36)*(MONTH($A88)-1)/12)*$C88 -> -0.4503415437 | I88: =(SUM('3.0 LRAMVA Register'!G$11:G$29)+SUM('3.0 LRAMVA Register'!G$35:G$36)*(MONTH($A88)-1)/12)*$C88 -> -4.958009875 | J88: =(SUM('3.0 LRAMVA Register'!H$11:H$29)+SUM('3.0 LRAMVA Register'!H$35:H$36)*(MONTH($A88)-1)/12)*$C88 -> 0 | K88: =(SUM('3.0 LRAMVA Register'!I$11:I$29)+SUM('3.0 LRAMVA Register'!I$35:I$36)*(MONTH($A88)-1)/12)*$C88 -> 0 | L88: =(SUM('3.0 LRAMVA Register'!J$11:J$29)+SUM('3.0 LRAMVA Register'!J$35:J$36)*(MONTH($A88)-1)/12)*$C88 -> 0 | M88: =(SUM('3.0 LRAMVA Register'!K$11:K$29)+SUM('3.0 LRAMVA Register'!K$35:K$36)*(MONTH($A88)-1)/12)*$C88 -> 0 | N88: 101.4451409
A89: 2014-08-01 | B89: Q3 | C89: =H$26/12 -> 0.001225 | D89: =(SUM('3.0 LRAMVA Register'!B$11:B$29)+SUM('3.0 LRAMVA Register'!B$35:B$36)*(MONTH($A89)-1)/12)*$C89 -> 86.81537023 | E89: =(SUM('3.0 LRAMVA Register'!C$11:C$29)+SUM('3.0 LRAMVA Register'!C$35:C$36)*(MONTH($A89)-1)/12)*$C89 -> 19.92970643 | F89: =(SUM('3.0 LRAMVA Register'!D$11:D$29)+SUM('3.0 LRAMVA Register'!D$35:D$36)*(MONTH($A89)-1)/12)*$C89 -> 5.075606078 | G89: =(SUM('3.0 LRAMVA Register'!E$11:E$29)+SUM('3.0 LRAMVA Register'!E$35:E$36)*(MONTH($A89)-1)/12)*$C89 -> -3.943731476 | H89: =(SUM('3.0 LRAMVA Register'!F$11:F$29)+SUM('3.0 LRAMVA Register'!F$35:F$36)*(MONTH($A89)-1)/12)*$C89 -> -0.4755929281 | I89: =(SUM('3.0 LRAMVA Register'!G$11:G$29)+SUM('3.0 LRAMVA Register'!G$35:G$36)*(MONTH($A89)-1)/12)*$C89 -> -5.236013866 | J89: =(SUM('3.0 LRAMVA Register'!H$11:H$29)+SUM('3.0 LRAMVA Register'!H$35:H$36)*(MONTH($A89)-1)/12)*$C89 -> 0 | K89: =(SUM('3.0 LRAMVA Register'!I$11:I$29)+SUM('3.0 LRAMVA Register'!I$35:I$36)*(MONTH($A89)-1)/12)*$C89 -> 0 | L89: =(SUM('3.0 LRAMVA Register'!J$11:J$29)+SUM('3.0 LRAMVA Register'!J$35:J$36)*(MONTH($A89)-1)/12)*$C89 -> 0 | M89: =(SUM('3.0 LRAMVA Register'!K$11:K$29)+SUM('3.0 LRAMVA Register'!K$35:K$36)*(MONTH($A89)-1)/12)*$C89 -> 0 | N89: 102.1653445
A90: 2014-09-01 | B90: Q3 | C90: =H$26/12 -> 0.001225 | D90: =(SUM('3.0 LRAMVA Register'!B$11:B$29)+SUM('3.0 LRAMVA Register'!B$35:B$36)*(MONTH($A90)-1)/12)*$C90 -> 87.53807276 | E90: =(SUM('3.0 LRAMVA Register'!C$11:C$29)+SUM('3.0 LRAMVA Register'!C$35:C$36)*(MONTH($A90)-1)/12)*$C90 -> 20.30381899 | F90: =(SUM('3.0 LRAMVA Register'!D$11:D$29)+SUM('3.0 LRAMVA Register'!D$35:D$36)*(MONTH($A90)-1)/12)*$C90 -> 5.211350382 | G90: =(SUM('3.0 LRAMVA Register'!E$11:E$29)+SUM('3.0 LRAMVA Register'!E$35:E$36)*(MONTH($A90)-1)/12)*$C90 -> -4.152831912 | H90: =(SUM('3.0 LRAMVA Register'!F$11:F$29)+SUM('3.0 LRAMVA Register'!F$35:F$36)*(MONTH($A90)-1)/12)*$C90 -> -0.5008443125 | I90: =(SUM('3.0 LRAMVA Register'!G$11:G$29)+SUM('3.0 LRAMVA Register'!G$35:G$36)*(MONTH($A90)-1)/12)*$C90 -> -5.514017857 | J90: =(SUM('3.0 LRAMVA Register'!H$11:H$29)+SUM('3.0 LRAMVA Register'!H$35:H$36)*(MONTH($A90)-1)/12)*$C90 -> 0 | K90: =(SUM('3.0 LRAMVA Register'!I$11:I$29)+SUM('3.0 LRAMVA Register'!I$35:I$36)*(MONTH($A90)-1)/12)*$C90 -> 0 | L90: =(SUM('3.0 LRAMVA Register'!J$11:J$29)+SUM('3.0 LRAMVA Register'!J$35:J$36)*(MONTH($A90)-1)/12)*$C90 -> 0 | M90: =(SUM('3.0 LRAMVA Register'!K$11:K$29)+SUM('3.0 LRAMVA Register'!K$35:K$36)*(MONTH($A90)-1)/12)*$C90 -> 0 | N90: 102.8855481
A91: 2014-10-01 | B91: Q4 | C91: =H$27/12 -> 0.001225 | D91: =(SUM('3.0 LRAMVA Register'!B$11:B$29)+SUM('3.0 LRAMVA Register'!B$35:B$36)*(MONTH($A91)-1)/12)*$C91 -> 88.26077529 | E91: =(SUM('3.0 LRAMVA Register'!C$11:C$29)+SUM('3.0 LRAMVA Register'!C$35:C$36)*(MONTH($A91)-1)/12)*$C91 -> 20.67793156 | F91: =(SUM('3.0 LRAMVA Register'!D$11:D$29)+SUM('3.0 LRAMVA Register'!D$35:D$36)*(MONTH($A91)-1)/12)*$C91 -> 5.347094685 | G91: =(SUM('3.0 LRAMVA Register'!E$11:E$29)+SUM('3.0 LRAMVA Register'!E$35:E$36)*(MONTH($A91)-1)/12)*$C91 -> -4.361932347 | H91: =(SUM('3.0 LRAMVA Register'!F$11:F$29)+SUM('3.0 LRAMVA Register'!F$35:F$36)*(MONTH($A91)-1)/12)*$C91 -> -0.5260956969 | I91: =(SUM('3.0 LRAMVA Register'!G$11:G$29)+SUM('3.0 LRAMVA Register'!G$35:G$36)*(MONTH($A91)-1)/12)*$C91 -> -5.792021847 | J91: =(SUM('3.0 LRAMVA Register'!H$11:H$29)+SUM('3.0 LRAMVA Register'!H$35:H$36)*(MONTH($A91)-1)/12)*$C91 -> 0 | K91: =(SUM('3.0 LRAMVA Register'!I$11:I$29)+SUM('3.0 LRAMVA Register'!I$35:I$36)*(MONTH($A91)-1)/12)*$C91 -> 0 | L91: =(SUM('3.0 LRAMVA Register'!J$11:J$29)+SUM('3.0 LRAMVA Register'!J$35:J$36)*(MONTH($A91)-1)/12)*$C91 -> 0 | M91: =(SUM('3.0 LRAMVA Register'!K$11:K$29)+SUM('3.0 LRAMVA Register'!K$35:K$36)*(MONTH($A91)-1)/12)*$C91 -> 0 | N91: 103.6057516
A92: 2014-11-01 | B92: Q4 | C92: =H$27/12 -> 0.001225 | D92: =(SUM('3.0 LRAMVA Register'!B$11:B$29)+SUM('3.0 LRAMVA Register'!B$35:B$36)*(MONTH($A92)-1)/12)*$C92 -> 88.98347782 | E92: =(SUM('3.0 LRAMVA Register'!C$11:C$29)+SUM('3.0 LRAMVA Register'!C$35:C$36)*(MONTH($A92)-1)/12)*$C92 -> 21.05204412 | F92: =(SUM('3.0 LRAMVA Register'!D$11:D$29)+SUM('3.0 LRAMVA Register'!D$35:D$36)*(MONTH($A92)-1)/12)*$C92 -> 5.482838988 | G92: =(SUM('3.0 LRAMVA Register'!E$11:E$29)+SUM('3.0 LRAMVA Register'!E$35:E$36)*(MONTH($A92)-1)/12)*$C92 -> -4.571032783 | H92: =(SUM('3.0 LRAMVA Register'!F$11:F$29)+SUM('3.0 LRAMVA Register'!F$35:F$36)*(MONTH($A92)-1)/12)*$C92 -> -0.5513470812 | I92: =(SUM('3.0 LRAMVA Register'!G$11:G$29)+SUM('3.0 LRAMVA Register'!G$35:G$36)*(MONTH($A92)-1)/12)*$C92 -> -6.070025838 | J92: =(SUM('3.0 LRAMVA Register'!H$11:H$29)+SUM('3.0 LRAMVA Register'!H$35:H$36)*(MONTH($A92)-1)/12)*$C92 -> 0 | K92: =(SUM('3.0 LRAMVA Register'!I$11:I$29)+SUM('3.0 LRAMVA Register'!I$35:I$36)*(MONTH($A92)-1)/12)*$C92 -> 0 | L92: =(SUM('3.0 LRAMVA Register'!J$11:J$29)+SUM('3.0 LRAMVA Register'!J$35:J$36)*(MONTH($A92)-1)/12)*$C92 -> 0 | M92: =(SUM('3.0 LRAMVA Register'!K$11:K$29)+SUM('3.0 LRAMVA Register'!K$35:K$36)*(MONTH($A92)-1)/12)*$C92 -> 0 | N92: 104.3259552
A93: 2014-12-01 | B93: Q4 | C93: =H$27/12 -> 0.001225 | D93: =(SUM('3.0 LRAMVA Register'!B$11:B$29)+SUM('3.0 LRAMVA Register'!B$35:B$36)*(MONTH($A93)-1)/12)*$C93 -> 89.70618035 | E93: =(SUM('3.0 LRAMVA Register'!C$11:C$29)+SUM('3.0 LRAMVA Register'!C$35:C$36)*(MONTH($A93)-1)/12)*$C93 -> 21.42615669 | F93: =(SUM('3.0 LRAMVA Register'!D$11:D$29)+SUM('3.0 LRAMVA Register'!D$35:D$36)*(MONTH($A93)-1)/12)*$C93 -> 5.618583292 | G93: =(SUM('3.0 LRAMVA Register'!E$11:E$29)+SUM('3.0 LRAMVA Register'!E$35:E$36)*(MONTH($A93)-1)/12)*$C93 -> -4.780133219 | H93: =(SUM('3.0 LRAMVA Register'!F$11:F$29)+SUM('3.0 LRAMVA Register'!F$35:F$36)*(MONTH($A93)-1)/12)*$C93 -> -0.5765984656 | I93: =(SUM('3.0 LRAMVA Register'!G$11:G$29)+SUM('3.0 LRAMVA Register'!G$35:G$36)*(MONTH($A93)-1)/12)*$C93 -> -6.348029829 | J93: =(SUM('3.0 LRAMVA Register'!H$11:H$29)+SUM('3.0 LRAMVA Register'!H$35:H$36)*(MONTH($A93)-1)/12)*$C93 -> 0 | K93: =(SUM('3.0 LRAMVA Register'!I$11:I$29)+SUM('3.0 LRAMVA Register'!I$35:I$36)*(MONTH($A93)-1)/12)*$C93 -> 0 | L93: =(SUM('3.0 LRAMVA Register'!J$11:J$29)+SUM('3.0 LRAMVA Register'!J$35:J$36)*(MONTH($A93)-1)/12)*$C93 -> 0 | M93: =(SUM('3.0 LRAMVA Register'!K$11:K$29)+SUM('3.0 LRAMVA Register'!K$35:K$36)*(MONTH($A93)-1)/12)*$C93 -> 0 | N93: 105.0461588
A94: 2015-01-01 | B94: Q1 | C94: =H$28/12 -> 0.001225 | D94: =SUM('3.0 LRAMVA Register'!B$11:B$36)*$C94 -> 105.7468944 | E94: =SUM('3.0 LRAMVA Register'!C$11:C$36)*$C94 -> 30.87741812 | F94: =SUM('3.0 LRAMVA Register'!D$11:D$36)*$C94 -> 7.538699474 | G94: =SUM('3.0 LRAMVA Register'!E$11:E$36)*$C94 -> -10.02220334 | H94: =SUM('3.0 LRAMVA Register'!F$11:F$36)*$C94 -> -1.208302022 | I94: =SUM('3.0 LRAMVA Register'!G$11:G$36)*$C94 -> -13.30273127 | J94: =SUM('3.0 LRAMVA Register'!H$11:H$36)*$C94 -> 0 | K94: =SUM('3.0 LRAMVA Register'!I$11:I$36)*$C94 -> 0 | L94: =SUM('3.0 LRAMVA Register'!J$11:J$36)*$C94 -> 0 | M94: =SUM('3.0 LRAMVA Register'!K$11:K$36)*$C94 -> 0 | N94: 119.6297754
A95: 2015-02-01 | B95: Q1 | C95: =H$28/12 -> 0.001225 | D95: =SUM('3.0 LRAMVA Register'!B$11:B$36)*$C95 -> 105.7468944 | E95: =SUM('3.0 LRAMVA Register'!C$11:C$36)*$C95 -> 30.87741812 | F95: =SUM('3.0 LRAMVA Register'!D$11:D$36)*$C95 -> 7.538699474 | G95: =SUM('3.0 LRAMVA Register'!E$11:E$36)*$C95 -> -10.02220334 | H95: =SUM('3.0 LRAMVA Register'!F$11:F$36)*$C95 -> -1.208302022 | I95: =SUM('3.0 LRAMVA Register'!G$11:G$36)*$C95 -> -13.30273127 | J95: =SUM('3.0 LRAMVA Register'!H$11:H$36)*$C95 -> 0 | K95: =SUM('3.0 LRAMVA Register'!I$11:I$36)*$C95 -> 0 | L95: =SUM('3.0 LRAMVA Register'!J$11:J$36)*$C95 -> 0 | M95: =SUM('3.0 LRAMVA Register'!K$11:K$36)*$C95 -> 0 | N95: 119.6297754
A96: 2015-03-01 | B96: Q1 | C96: =H$28/12 -> 0.001225 | D96: =SUM('3.0 LRAMVA Register'!B$11:B$36)*$C96 -> 105.7468944 | E96: =SUM('3.0 LRAMVA Register'!C$11:C$36)*$C96 -> 30.87741812 | F96: =SUM('3.0 LRAMVA Register'!D$11:D$36)*$C96 -> 7.538699474 | G96: =SUM('3.0 LRAMVA Register'!E$11:E$36)*$C96 -> -10.02220334 | H96: =SUM('3.0 LRAMVA Register'!F$11:F$36)*$C96 -> -1.208302022 | I96: =SUM('3.0 LRAMVA Register'!G$11:G$36)*$C96 -> -13.30273127 | J96: =SUM('3.0 LRAMVA Register'!H$11:H$36)*$C96 -> 0 | K96: =SUM('3.0 LRAMVA Register'!I$11:I$36)*$C96 -> 0 | L96: =SUM('3.0 LRAMVA Register'!J$11:J$36)*$C96 -> 0 | M96: =SUM('3.0 LRAMVA Register'!K$11:K$36)*$C96 -> 0 | N96: 119.6297754
A97: 2015-04-01 | B97: Q2 | C97: =H$29/12 -> 0.0009166666667 | D97: =SUM('3.0 LRAMVA Register'!B$11:B$36)*$C97 -> 79.13032917 | E97: =SUM('3.0 LRAMVA Register'!C$11:C$36)*$C97 -> 23.10555097 | F97: =SUM('3.0 LRAMVA Register'!D$11:D$36)*$C97 -> 5.641203688 | G97: =SUM('3.0 LRAMVA Register'!E$11:E$36)*$C97 -> -7.499607942 | H97: =SUM('3.0 LRAMVA Register'!F$11:F$36)*$C97 -> -0.9041715812 | I97: =SUM('3.0 LRAMVA Register'!G$11:G$36)*$C97 -> -9.954424757 | J97: =SUM('3.0 LRAMVA Register'!H$11:H$36)*$C97 -> 0 | K97: =SUM('3.0 LRAMVA Register'!I$11:I$36)*$C97 -> 0 | L97: =SUM('3.0 LRAMVA Register'!J$11:J$36)*$C97 -> 0 | M97: =SUM('3.0 LRAMVA Register'!K$11:K$36)*$C97 -> 0 | N97: 89.51887955
A98: Total for rate year 2014 | D98: =SUM(D85:D97) -> 2183.00399 | E98: =SUM(E85:E97) -> 494.5431957 | F98: =SUM(F85:F97) -> 110.4928948 | G98: =SUM(G85:G97) -> -94.76734417 | H98: =SUM(H85:H97) -> -11.42525067 | I98: =SUM(I85:I97) -> -125.7856357 | J98: =SUM(J85:J97) -> 0 | K98: 0 | L98: 0 | M98: 0 | N98: =SUM(N85:N97) -> 2556.06185
A99: Amount Cleared | N99: =SUM(D99:M99) -> 0
A100: Opening Balance for rate year 2015 | D100: =D98+D99 -> 2183.00399 | E100: =E98+E99 -> 494.5431957 | F100: 110.4928948 | G100: -94.76734417 | H100: -11.42525067 | I100: -125.7856357 | J100: 0 | K100: 0 | L100: 0 | M100: 0 | N100: =N98+N99 -> 2556.06185

Sheet 6.0 Rates
A1: LRAMVA Model version 1.0 © CHEC
A8: Table 6 - Distribution Rates
A10: Rate Class | B10: Billing Unit | C10: 2011 | D10: 2012 | E10: 2013 | F10: 2014 | G10: May 1, 2010 to Apr 30, 2011 | H10: May 1, 2011 to Apr 30, 2012 | I10: May 1, 2012 to Dec 31, 2012 | J10: Jan 1, 2013 to Dec 31, 2013 | K10: Jan 1, 2014 to Dec 31, 2014
A11: For "Calendar" rate year | H11: 2011 | I11: 2012 | J11: 2013 | K11: 2014
A12: Pro-ratio of Rates (months) - Period 1 | G12: 4 | H12: 4 | I12: 4 | J12: 0 | K12: 0
A13: Pro-ratio of Rates (months) - Period 2 | G13: 8 | H13: 8 | I13: 8 | J13: 12 | K13: 12
A15: ='4.0 Approved Load Forecast'!D20 -> Residential | B15: ='2.0 Customer Classes'!D13 -> kWh | C15: =SUM(G15*$H$12+H15*$H$13)/12 -> 0.0186 | D15: =SUM(H15*$I$12+I15*$I$13)/12 -> 0.01873333333 | E15: =SUM(I15*$J$12+J15*$J$13)/12 -> 0.0178 | F15: =SUM(J15*$K$12+K15*$K$13)/12 -> 0.018 | G15: 0.0186 | H15: 0.0186 | I15: 0.0188 | J15: 0.0178 | K15: 0.018
A16: ='4.0 Approved Load Forecast'!E20 -> General Service < 50 kW | B16: ='2.0 Customer Classes'!D14 -> kWh | C16: =SUM(G16*$H$12+H16*$H$13)/12 -> 0.008733333333 | D16: 0.008566666667 | E16: 0.008 | F16: =SUM(J16*$K$12+K16*$K$13)/12 -> 0.0081 | G16: 0.0092 | H16: 0.0085 | I16: 0.0086 | J16: 0.008 | K16: 0.0081
A17: ='4.0 Approved Load Forecast'!F20 -> General Service > 50 to 4999 kW | B17: ='2.0 Customer Classes'!D15 -> kW | C17: 3.0111 | D17: 2.966433333 | E17: 2.9773 | F17: 3.019 | G17: 3.1351 | H17: 2.9491 | I17: 2.9751 | J17: 2.9773 | K17: 3.019
A18: ='4.0 Approved Load Forecast'!G20 -> Unmetered Scattered Load | B18: ='2.0 Customer Classes'!D16 -> kW | C18: 0.03926666667 | D18: 0.0395 | E18: 0.017 | F18: 0.0172 | G18: 0.0392 | H18: 0.0393 | I18: 0.0396 | J18: 0.017 | K18: 0.0172
A19: ='4.0 Approved Load Forecast'!H20 -> Sentinel Lighting | B19: ='2.0 Customer Classes'!D17 -> kWh | C19: 32.11296667 | D19: 34.69393333 | E19: 48.7891 | F19: 49.4721 | G19: 27.3557 | H19: 34.4916 | I19: 34.7951 | J19: 48.7891 | K19: 49.4721
A20: ='4.0 Approved Load Forecast'!I20 -> Street Lighting | B20: ='2.0 Customer Classes'!D18 -> kW | C20: 34.27576667 | D20: 37.19763333 | E20: 37.8268 | F20: 38.3564 | G20: 28.8659 | H20: 36.9807 | I20: 37.3061 | J20: 37.8268 | K20: 38.3564
A21: ='4.0 Approved Load Forecast'!J20 -> other | B21: ='2.0 Customer Classes'!D19 -> 0 | C21: 0 | D21: 0 | E21: 0 | F21: 0 | G21: 0 | H21: 0 | I21: 0 | J21: 0 | K21: 0
A22: ='4.0 Approved Load Forecast'!K20 -> other | B22: ='2.0 Customer Classes'!D20 -> 0 | C22: 0 | D22: 0 | E22: 0 | F22: 0 | G22: 0 | H22: 0 | I22: 0 | J22: 0 | K22: 0
A23: ='4.0 Approved Load Forecast'!L20 -> other | B23: ='2.0 Customer Classes'!D21 -> 0
A24: ='4.0 Approved Load Forecast'!M20 -> other | B24: ='2.0 Customer Classes'!D22 -> 0 | C24: =IF((G24*4+H24*8)/12=0," ",(G24*4+H24*8)/12) ->  | D24: =IF((H24*4+I24*8)/12=0," ",(H24*4+I24*8)/12) ->  | E24: =IF((I24*4+J24*8)/12=0," ",(I24*4+J24*8)/12) ->  | F24: =IF((J24*4+K24*8)/12=0," ",(J24*4+K24*8)/12) -> 
A26: References:
A27: Decision & Orders relating to distribution volumetric rates: | G27: EB-2009-0232 | H27: EB-2010-0093 | I27: EB-2011-0176 | J27: EB-2012-0139 | K27: EB-2013-0144

Sheet 7.0 2011LostRev
A1: LRAMVA Model version 1.0 © CHEC
B6: Table 7: Allocation of Program Savings Across Rate Classes
G7: 2011
A10: # | B10: Initiative | C10: Results Status | D10: Net Incremental Peak Demand Savings (kW) | E10: Net Incremental Energy Savings (kWh) | F10: Rate Allocation for LRAMVA
D11: 2011 kW Saved | E11: 2011 kWh Saved | F11: ='3.0 LRAMVA Register'!B10 -> Residential | G11: ='3.0 LRAMVA Register'!C10 -> General Service < 50 kW | H11: ='3.0 LRAMVA Register'!D10 -> General Service > 50 to 4999 kW | I11: ='3.0 LRAMVA Register'!E10 -> Unmetered Scattered Load | J11: ='3.0 LRAMVA Register'!F10 -> Sentinel Lighting | K11: ='3.0 LRAMVA Register'!G10 -> Street Lighting | L11: ='3.0 LRAMVA Register'!H10 -> other | M11: ='3.0 LRAMVA Register'!K10 -> other | N11: ='3.0 LRAMVA Register'!L10 -> Total
B12: Consumer Program
A13: 1 | B13: Appliance Retirement | C13: Verified | D13: 14 | E13: 100309 | F13: 1 | N13: =SUM(F13:M13) -> 1
A14: 2 | B14: Appliance Exchange | C14: Verified | D14: 2 | E14: 2387 | F14: 1 | N14: =SUM(F14:M14) -> 1
A15: 3 | B15: HVAC Incentives | C15: Verified | D15: 58 | E15: 113459 | F15: 1 | N15: 1
A16: 4 | B16: Conservation Instant Coupon Booklet | C16: Verified | D16: 5 | E16: 78462 | F16: 1 | N16: 1
A17: 5 | B17: Bi-Annual Retailer Event | C17: Verified | D17: 7 | E17: 116108 | F17: 1 | N17: 1
A18: 6 | B18: Retailer Co-op | C18: Verified | D18: 0 | E18: 0 | N18: 0
A19: 7 | B19: Residential Demand Response | C19: Verified | D19: 130 | E19: 338 | F19: 1 | N19: 1
A20: 8 | B20: Residential New Construction | C20: Verified | D20: 0 | E20: 0 | F20: 0 | N20: 0
B21: Business Program
A22: 9 | B22: Retrofit | C22: Verified | D22: 0 | E22: 44014 | G22: 1 | H22: 0 | N22: =SUM(F22:M22) -> 1
A23: 10 | B23: Direct Install Lighting | C23: Verified | D23: 14 | E23: 35938 | G23: 1 | N23: 1
A24: 11 | B24: Building Commissioning | C24: Verified | N24: 0
A25: 12 | B25: New Construction | C25: Verified | N25: 0
A26: 13 | B26: Energy Audit | C26: Verified | N26: 0
A27: 14 | B27: Commercial Demand Response (part of residential program) | C27: Verified | D27: 3 | E27: 12 | G27: 1 | N27: 1
A28: 15 | B28: Demand Response 3 | C28: Verified | H28: 1 | N28: 1
B29: Industrial Program
A30: 16 | B30: Process & System Upgrades | C30: Verified | N30: =SUM(F30:M30) -> 0
A31: 17 | B31: Monitoring & Targeting | C31: Verified | N31: 0
A32: 18 | B32: Energy Manager | C32: Verified | N32: 0
A33: 19 | B33: Retrofit | C33: Verified | N33: 0
A34: 20 | B34: Demand Response 3 | C34: Verified | H34: 1 | N34: 1
B35: Home Assistance Program
A36: 21 | B36: Home Assistance Program | C36: Verified | F36: 1 | N36: =SUM(F36:M36) -> 1
B37: Pre-2011 Programs completed in 2011
A38: 22 | B38: Electricity Retrofit Incentive Program | C38: Verified | D38: 29 | E38: 481 | G38: 1 | H38: 0 | N38: =SUM(F38:M38) -> 1
A39: 23 | B39: High Performance New Construction | C39: Verified | D39: 13 | E39: 64386 | G39: 1 | H39: 0 | N39: 1
A40: 24 | B40: Toronto Comprehensive | C40: Verified | N40: 0
A41: 25 | B41: Multifamily Energy Efficiency Rebates | C41: Verified | N41: 0
B42: Total kWh | D42: =SUM(D13:D20,D22:D27,D30:D33,D36,D38:D41) -> 275 | E42: =SUM(E13:E20,E22:E27,E30:E33,E36,E38:E41) -> 555894 | F42: =SUM(E13*F13,E14*F14,E15*F15,E16*F16,E17*F17,E18*F18,E19*F19,E20*F20,E36*F36) -> 411063 | G42: =SUM(E22*G22,E23*G23,E27*G27,E38*G38,E39*G39) -> 144831 | H42: =SUM($E$22*H22,$E$38*H38,$E$39*H39) -> 0 | I42: =SUM($E$22*I22,$E$38*I38,$E$39*I39) -> 0 | J42: =SUM($E$22*J22,$E$38*J38,$E$39*J39) -> 0 | K42: 0 | L42: 0 | N42: =SUM(F42:M42) -> 555894
A43: 12 | B43: Total GS > 50 kW excluding Demand Response 3 | H43: =SUM($D$22*H22,$D$38*H38,$D$39*H39)*$A43 -> 0 | I43: =SUM($D$22*I22,$D$38*I38,$D$39*I39)*$A43 -> 0 | J43: 0 | K43: 0 | L43: 0 | N43: =SUM(F43:M43) -> 0
A44: 5 | B44: Demand Response Total (Scenario 1) | D44: =SUM(D28,D34) -> 0 | E44: =SUM(E28,E34) -> 0 | H44: =SUM($D$28*H28,$D$34*H34)*$A44 -> 0 | I44: =SUM($D$28*I28,$D$34*I34)*$A44 -> 0 | J44: 0 | K44: 0 | L44: 0 | N44: =SUM(F44:M44) -> 0
B45: OPA-Contracted LDC Portfolio Total | D45: =SUM(D42:D44) -> 275 | E45: =SUM(E42:E44) -> 555894
B46: Rate | F46: ='6.0 Rates'!C15 -> 0.0186 | G46: ='6.0 Rates'!C16 -> 0.008733333333 | H46: ='6.0 Rates'!C17 -> 3.0111 | I46: ='6.0 Rates'!C18 -> 0.03926666667 | J46: ='6.0 Rates'!C19 -> 32.11296667 | K46: ='6.0 Rates'!C20 -> 34.27576667 | L46: ='6.0 Rates'!C21 -> 0
B47: Lost Revenue in 2011 | F47: =F42*F46 -> 7645.7718 | G47: =G42*G46 -> 1264.8574 | H47: =SUM(H43,H44)*H46 -> 0 | I47: =I43*I46 -> 0 | J47: 0 | K47: 0 | L47: 0 | N47: =SUM(F47:M47) -> 8910.6292
B48: 2011 Savings Persisting in 2012 | F48: =F42*'11.0 Persistence '!C42 -> 411063 | G48: =G42*'11.0 Persistence '!C42 -> 144831 | H48: =H43*'11.0 Persistence '!C24 -> 0 | I48: =I43*'11.0 Persistence '!C24 -> 0 | J48: =J43*'11.0 Persistence '!C24 -> 0 | K48: =K43*'11.0 Persistence '!C24 -> 0 | L48: =L43*'11.0 Persistence '!C42 -> 0
B49: 2011 Savings Persisting in 2013 | F49: =F42*'11.0 Persistence '!D42 -> 411063 | G49: =G42*'11.0 Persistence '!D42 -> 144831 | H49: =H43*'11.0 Persistence '!D24 -> 0 | I49: =I43*'11.0 Persistence '!D24 -> 0 | J49: =J43*'11.0 Persistence '!D24 -> 0 | K49: =K43*'11.0 Persistence '!D24 -> 0 | L49: =L43*'11.0 Persistence '!D42 -> 0
B50: 2011 Savings Persisting in 2014 | F50: =F42*'11.0 Persistence '!E42 -> 342552.5 | G50: =G42*'11.0 Persistence '!E42 -> 120692.5 | H50: =H43*'11.0 Persistence '!E24 -> 0 | I50: =I43*'11.0 Persistence '!E24 -> 0 | J50: =J43*'11.0 Persistence '!E24 -> 0 | K50: =K43*'11.0 Persistence '!E24 -> 0 | L50: =L43*'11.0 Persistence '!E42 -> 0
B52: Input program details, report status, kWh and kW net savings from OPA 2011 Final Annual Report Data - Table 5
B53: Input % allocation where applicable based on LDC information
B55: 2011 savings persisting - OPA 2011 Final Annual Report Data - Tables 6 and 7

Sheet 8.0 2012LostRev
A1: LRAMVA Model version 1.0 © CHEC
B6: Table 8: Allocation of Program Savings Across Rate Classes
G7: 2012
A10: # | B10: Initiative | C10: Results Status | D10: Net Incremental Peak Demand Savings (kW) | E10: Net Incremental Energy Savings (kWh) | F10: Rate Allocation for LRAMVA
D11: 2012 kW Saved | E11: 2012 kWh Saved | F11: ='3.0 LRAMVA Register'!B10 -> Residential | G11: ='3.0 LRAMVA Register'!C10 -> General Service < 50 kW | H11: ='3.0 LRAMVA Register'!D10 -> General Service > 50 to 4999 kW | I11: ='3.0 LRAMVA Register'!E10 -> Unmetered Scattered Load | J11: ='3.0 LRAMVA Register'!F10 -> Sentinel Lighting | K11: ='3.0 LRAMVA Register'!G10 -> Street Lighting | L11: ='3.0 LRAMVA Register'!H10 -> other | M11: ='3.0 LRAMVA Register'!K10 -> other | N11: ='3.0 LRAMVA Register'!L10 -> Total
B12: Consumer Program
A13: 1 | B13: Appliance Retirement | C13: Verified | D13: 5 | E13: 38037 | F13: 1 | N13: =SUM(F13:M13) -> 1
A14: 2 | B14: Appliance Exchange | C14: Verified | D14: 1 | E14: 1178 | F14: 1 | N14: =SUM(F14:M14) -> 1
A15: 3 | B15: HVAC Incentives | C15: Verified | D15: 46 | E15: 81926 | F15: 1 | N15: 1
A16: 4 | B16: Conservation Instant Coupon Booklet | C16: Verified | D16: 1 | E16: 5524 | F16: 1 | N16: 1
A17: 5 | B17: Bi-Annual Retailer Event | C17: Verified | D17: 6 | E17: 105813 | F17: 1 | N17: 1
A18: 6 | B18: Retailer Co-op | C18: Verified | F18: 1 | N18: 1
A19: 7 | B19: Residential Demand Response (switch/pstat) | C19: Verified | F19: 1 | N19: 1
A20: 8 | B20: Residential Demand Response (IHD) | C20: Verified | F20: 1 | N20: =SUM(F20:M20) -> 1
A21: 9 | B21: Residential New Construction | C21: Verified | F21: 1 | N21: 1
B22: 2011 True-up (Verified Errors & Omissions)
A23: 3a | B23: HVAC Incentives | C23: True-Up | D23: -9 | E23: 7220 | F23: 1 | N23: 1
A24: 4a | B24: Conservation Instant Coupon Booklet | C24: True-Up | F24: 1 | N24: 1
A25: 5a | B25: Bi-Annual Retailer Event | C25: True-Up | F25: 1 | N25: 1
B26: Business Program
A27: 10 | B27: Retrofit | C27: Verified | D27: 37 | E27: 221113 | G27: 0.2 | H27: 0.8 | N27: =SUM(F27:M27) -> 1
A28: 11 | B28: Direct Install Lighting | C28: Verified | D28: 23 | E28: 88865 | G28: 1 | N28: 1
A29: 12 | B29: Building Commissioning | C29: Verified | N29: 0
A30: 13 | B30: New Construction | C30: Verified | N30: 0
A31: 14 | B31: Energy Audit | C31: Verified | N31: 0
A32: 15 | B32: Small Commercial Demand Response (switch/pstat)* | C32: Verified | N32: =SUM(F32:M32) -> 0
A33: 16 | B33: Small Commercial Demand Response (IHD) | C33: Verified | N33: 0
A34: 17 | B34: Demand Response 3 | C34: Verified | H34: 1 | N34: 1
B35: 2011 True-up (Verified Errors & Omissions)
A36: 11a | B36: Direct Install Lighting | C36: True-Up | G36: 1 | N36: 1
B37: Industrial Program
A38: 18 | B38: Process & System Upgrades | C38: Verified | N38: =SUM(F38:M38) -> 0
A39: 19 | B39: Monitoring & Targeting | C39: Verified | N39: 0
A40: 20 | B40: Energy Manager | C40: Verified | N40: 0
A41: 21 | B41: Retrofit | C41: Verified | N41: 0
A42: 22 | B42: Demand Response 3 | C42: Verified | H42: 1 | N42: 1
B43: Home Assistance Program
A44: 23 | B44: Home Assistance Program | C44: Verified | D44: 8 | E44: 58650 | F44: 1 | N44: =SUM(F44:M44) -> 1
B45: Pre-2011 Programs completed in 2011
A46: 24 | B46: Electricity Retrofit Incentive Program | C46: Verified | H46: 1 | N46: =SUM(F46:M46) -> 1
A47: 25 | B47: High Performance New Construction | C47: Verified | E47: 433 | H47: 1 | N47: 1
A48: 26 | B48: Toronto Comprehensive | C48: Verified | N48: 0
A49: 27 | B49: Multifamily Energy Efficiency Rebates | C49: Verified | N49: 0
A50: 28 | B50: LDC Custom Programs | C50: Verified | N50: 0
B51: 2011 True-up (Verified Errors & Omissions)
A52: 22a | B52: High Performance New Construction | C52: True-Up | H52: 1 | N52: =SUM(F52:M52) -> 1
B53: Other
A54: 29 | B54: Program Enabled Savings | C54: Verified | N54: =SUM(F54:M54) -> 0
A55: 30 | B55: Time-of-Use Savings | C55: Verified | N55: 0
B56: Total kWh | D56: =SUM(D13:D25,D27:D33,D35:D36,D38:D41,D44,D46:D52,D54:D55) -> 118 | E56: =SUM(E13:E25,E27:E33,E35:E36,E38:E41,E44,E46:E52,E54:E55) -> 608759 | F56: =SUM(E13*F13,E14*F14,E15*F15,E16*F16,E17*F17,E18*F18,E19*F19,E21*F21,E23*F23,E24*F24,E25*F25,E44*F44) -> 298348 | G56: =SUM(E27*G27,E28*G28,E36*G36) -> 133087.6 | H56: =SUM($E$27*H27,$E$46*H46,$E$47*H47,$E$52*H52) -> 177323.4 | I56: =SUM($E$27*I27,$E$46*I46,$E$47*I47,$E$52*I52) -> 0 | J56: =SUM($E$27*J27,$E$46*J46,$E$47*J47,$E$52*J52) -> 0 | K56: =SUM($E$27*K27,$E$46*K46,$E$47*K47,$E$52*K52) -> 0 | L56: =SUM($E$27*L27,$E$46*L46,$E$47*L47,$E$52*L52) -> 0 | N56: =SUM(F56:M56) -> 608759
A57: 12 | B57: Total GS > 50 kW excluding Demand Response 3 | H57: =SUM($D$27*H27,$D$46*H46,$D$47*H47,$D$52*H52)*$A$57 -> 355.2 | I57: =SUM($D$27*I27,$D$46*I46,$D$47*I47,$D$52*I52)*$A$57 -> 0 | J57: =SUM($D$27*J27,$D$46*J46,$D$47*J47,$D$52*J52)*$A$57 -> 0 | K57: 0 | L57: 0 | N57: =SUM(F57:M57) -> 355.2
A58: 5 | B58: Demand Response Total (Scenario 1) | D58: =SUM(D34,D42) -> 0 | E58: =SUM(E34,E42) -> 0 | H58: =SUM($D$34*H34,$D$42*H42)*$A$58 -> 0 | I58: =SUM($D$34*I34,$D$42*I42)*$A$58 -> 0 | J58: 0 | K58: 0 | L58: 0 | N58: =SUM(F58:M58) -> 0
B59: OPA-Contracted LDC Portfolio Total | D59: =SUM(D56:D58) -> 118 | E59: =SUM(E56:E58) -> 608759
B60: Rate | F60: ='6.0 Rates'!D15 -> 0.01873333333 | G60: ='6.0 Rates'!D16 -> 0.008566666667 | H60: ='6.0 Rates'!D17 -> 2.966433333 | I60: ='6.0 Rates'!D18 -> 0.0395 | J60: ='6.0 Rates'!D19 -> 34.69393333 | K60: ='6.0 Rates'!D20 -> 37.19763333 | L60: ='6.0 Rates'!D21 -> 0
B61: Lost Revenue in 2012 from 2012 | F61: =F56*F60 -> 5589.052533 | G61: =G56*G60 -> 1140.117107 | H61: =SUM(H57,H58)*H60 -> 1053.67712 | I61: =SUM(I57,I58)*I60 -> 0 | J61: =J57*J60 -> 0 | K61: 0 | L61: 0 | N61: =SUM(F61:M61) -> 7782.84676
B62: Lost Revenue in 2012 from 2011 | F62: ='7.0 2011LostRev'!F48*F60 -> 7700.5802 | G62: ='7.0 2011LostRev'!G48*G60 -> 1240.7189 | H62: ='7.0 2011LostRev'!H48*H60 -> 0 | I62: ='7.0 2011LostRev'!I48*I60 -> 0 | J62: ='7.0 2011LostRev'!J48*J60 -> 0 | K62: ='7.0 2011LostRev'!K48*K60 -> 0 | L62: ='7.0 2011LostRev'!L48*L60 -> 0 | N62: =SUM(F62:M62) -> 8941.2991
B63: Total Lost Revenue in 2012 | F63: =SUM(F61:F62) -> 13289.63273 | G63: =SUM(G61:G62) -> 2380.836007 | H63: 1053.67712 | I63: 0 | J63: 0 | K63: 0 | L63: 0 | N63: =SUM(N61:N62) -> 16724.14586
B64: 2012 Savings Persisting in 2013 | F64: =F56*'11.0 Persistence '!D43 -> 298348 | G64: =G56*'11.0 Persistence '!D43 -> 133087.6 | H64: =H57*'11.0 Persistence '!D25 -> 355.2 | I64: =I57*'11.0 Persistence '!D25 -> 0 | J64: =J57*'11.0 Persistence '!D25 -> 0 | K64: =K57*'11.0 Persistence '!D25 -> 0 | L64: =L57*'11.0 Persistence '!D43 -> 0
B65: 2012 Savings Persisting in 2014 | F65: =F56*'11.0 Persistence '!E43 -> 298348 | G65: =G56*'11.0 Persistence '!E43 -> 133087.6 | H65: =H57*'11.0 Persistence '!E25 -> 355.2 | I65: =I57*'11.0 Persistence '!E25 -> 0 | J65: =J57*'11.0 Persistence '!E25 -> 0 | K65: =K57*'11.0 Persistence '!E25 -> 0 | L65: =L57*'11.0 Persistence '!E43 -> 0
B67: Input program details, report status, kWh and kW net savings from Final Verified Annual 2012 CDM Report_Orillia Power Distribution Corporation/Table 1 2012 Savings & Table 2 (Adjustments due to Errors and Omissions)
B68: Input % allocation where applicable based on LDC information
B70: 2012 savings persisting - OPA 2012 Gross to Net Savings Report Data

Sheet 9.0 2013LostRev
A1: LRAMVA Model version 1.0 © CHEC
A6: Table 10: Allocation of Program Savings Across Rate Classes
G7: 2013
A10: # | B10: Initiative | C10: Results Status | D10: Net Incremental Peak Demand Savings (kW) | E10: Net Incremental Energy Savings (kWh) | F10: Rate Allocation for LRAMVA
D11: 2013 kW Saved | E11: 2013 kWh Saved | F11: ='3.0 LRAMVA Register'!B10 -> Residential | G11: ='3.0 LRAMVA Register'!C10 -> General Service < 50 kW | H11: ='3.0 LRAMVA Register'!D10 -> General Service > 50 to 4999 kW | I11: ='3.0 LRAMVA Register'!E10 -> Unmetered Scattered Load | J11: ='3.0 LRAMVA Register'!F10 -> Sentinel Lighting | K11: ='3.0 LRAMVA Register'!G10 -> Street Lighting | L11: ='3.0 LRAMVA Register'!H10 -> other | M11: ='3.0 LRAMVA Register'!K10 -> other | N11: ='3.0 LRAMVA Register'!L10 -> Total
B12: Consumer Program
A13: 1 | B13: Appliance Retirement | C13: Verified | D13: 3 | E13: 19120 | F13: 1 | N13: =SUM(F13:M13) -> 1
A14: 2 | B14: Appliance Exchange | C14: Verified | D14: 4 | E14: 7019 | F14: 1 | N14: =SUM(F14:M14) -> 1
A15: 3 | B15: HVAC Incentives | C15: Verified | D15: 46 | E15: 83619 | F15: 1 | N15: 1
A16: 4 | B16: Conservation Instant Coupon Booklet | C16: Verified | D16: 2 | E16: 30452 | F16: 1 | N16: 1
A17: 5 | B17: Bi-Annual Retailer Event | C17: Verified | D17: 5 | E17: 67876 | F17: 1 | N17: 1
A18: 6 | B18: Retailer Co-op | C18: Verified | F18: 1 | N18: 1
A19: 7 | B19: Residential Demand Response (switch/pstat) | C19: Verified | F19: 1 | N19: 1
A20: 8 | B20: Residential Demand Response (IHD) | C20: Verified | F20: 1 | N20: 1
A21: 9 | B21: Residential New Construction | C21: Verified | F21: 1 | N21: 1
B22: 2012 True-up (Verified Errors & Omissions)
B23: HVAC Incentives | C23: True-up | D23: -9 | E23: 7220 | F23: 1
C24: True-up
C25: True-up
B26: Business Program
A27: 10 | B27: Retrofit | C27: Verified | D27: 53 | E27: 282136 | G27: 0.2 | H27: 0.8 | N27: =SUM(F27:M27) -> 1
A28: 11 | B28: Direct Install Lighting | C28: Verified | D28: 29 | E28: 116579 | G28: 1 | N28: 1
A29: 12 | B29: Building Commissioning | C29: Verified | N29: 0
A30: 13 | B30: New Construction | C30: Verified | N30: 0
A31: 14 | B31: Energy Audit | C31: Verified | N31: 0
A32: 15 | B32: Small Commercial Demand Response (switch/pstat)* | C32: Verified | N32: 0
A33: 16 | B33: Small Commercial Demand Response (IHD) | C33: Verified | N33: 0
A34: 17 | B34: Demand Response 3 | C34: Verified | D34: 166 | E34: 2828 | G34: 0 | H34: 1 | N34: 1
B35: 2012 True-up (Verified Errors & Omissions)
B36: Retrofit | C36: True-up | D36: 47 | E36: 229344 | G36: 0.2 | H36: 0.8
C37: True-up
C38: True-up
B39: Industrial Program
A40: 18 | B40: Process & System Upgrades | C40: Verified | N40: =SUM(F40:M40) -> 0
A41: 19 | B41: Monitoring & Targeting | C41: Verified | N41: 0
A42: 20 | B42: Energy Manager | C42: Verified | D42: 149 | E42: 356400 | G42: 0.5 | H42: 0.5 | N42: 1
A43: 21 | B43: Retrofit | C43: Verified | N43: 0
A44: 22 | B44: Demand Response 3 | C44: Verified | D44: 166 | E44: 3780 | H44: 1 | N44: 1
B45: 2012 True-up (Verified Errors & Omissions)
C46: True-up
B47: Home Assistance Program
A48: 23 | B48: Home Assistance Program | C48: Verified | D48: 18 | E48: 99879 | F48: 1 | N48: =SUM(F48:M48) -> 1
B49: 2012 True-up (Verified Errors & Omissions)
C50: True-up
B51: Pre-2011 Programs completed in 2011
A52: 24 | B52: Electricity Retrofit Incentive Program | C52: Verified | H52: 1 | N52: =SUM(F52:M52) -> 1
A53: 25 | B53: High Performance New Construction | C53: Verified | H53: 1 | N53: 1
A54: 26 | B54: Toronto Comprehensive | C54: Verified | N54: 0
A55: 27 | B55: Multifamily Energy Efficiency Rebates | C55: Verified | N55: 0
A56: 28 | B56: LDC Custom Programs | C56: Verified | N56: 0
B57: 2012 True-up (Verified Errors & Omissions)
C58: True-up
B59: Other
A60: 29 | B60: Program Enabled Savings | C60: Verified | N60: =SUM(F60:M60) -> 0
A61: 30 | B61: Time-of-Use Savings | C61: Verified | N61: 0
B62: Total kWh | D62: =SUM(D13:D21,D27:D33,D40:D43,D48,D52:D56,D60:D61) -> 309 | E62: =SUM(E13:E21,E27:E33,E40:E43,E48,E52:E56,E60:E61) -> 1063080 | F62: =SUM($E$13*F13,$E$14*F14,$E$15*F15,$E$16*F16,$E$17*F17,$E$18*F18,$E$19*F19,$E$21*F21,$E$48*F48,$E$23*F23,$E$24*F24,$E$25*F25,$E$50*F50) -> 315185 | G62: =SUM($E$27*G27,$E$28*G28,$E$29*G29,$E$30*G30,$E$31*G31,$E$36*G36,$E$37*G37,$E$38*G38) -> 218875 | H62: =SUM($E$27*H27,$E$34*H34,$E$44*H44,$E$52*H52,$E$53*H53,$E$28*H28,$E$29*H29,$E$30*H30,$E$31*H31,$E$36*H36,$E$37*H37,$E$38*H38,$E$46*H46,$E$58*H58) -> 415792 | I62: =SUM($E$27*I27,$E$34*I34,$E$44*I44,$E$52*I52,$E$53*I53,$E$28*I28,$E$29*I29,$E$30*I30,$E$31*I31,$E$36*I36,$E$37*I37,$E$38*I38,$E$46*I46,$E$58*I58) -> 0 | J62: =SUM($E$27*J27,$E$34*J34,$E$44*J44,$E$52*J52,$E$53*J53,$E$28*J28,$E$29*J29,$E$30*J30,$E$31*J31,$E$36*J36,$E$37*J37,$E$38*J38,$E$46*J46,$E$58*J58) -> 0 | K62: =SUM($E$27*K27,$E$34*K34,$E$44*K44,$E$52*K52,$E$53*K53,$E$28*K28,$E$29*K29,$E$30*K30,$E$31*K31,$E$36*K36,$E$37*K37,$E$38*K38,$E$46*K46,$E$58*K58) -> 0 | L62: =SUM($E$27*L27,$E$34*L34,$E$44*L44,$E$52*L52,$E$53*L53,$E$28*L28,$E$29*L29,$E$30*L30,$E$31*L31,$E$36*L36,$E$37*L37,$E$38*L38,$E$46*L46,$E$58*L58) -> 0 | N62: =SUM(F62:M62) -> 949852
A63: 12 | B63: Total GS > 50 kW excluding Demand Response 3 | H63: =SUM($D$27*H27,$D$52*H52,$D$53*H53)*$A63 -> 508.8 | I63: =SUM($D$27*I27,$D$52*I52,$D$53*I53)*$A63 -> 0 | J63: =SUM($D$27*J27,$D$52*J52,$D$53*J53)*$A63 -> 0 | K63: =SUM($D$27*K27,$D$52*K52,$D$53*K53)*$A63 -> 0 | L63: =SUM($D$27*L27,$D$52*L52,$D$53*L53)*$A63 -> 0 | N63: =SUM(F63:M63) -> 508.8
A64: 5 | B64: Demand Response Total (Scenario 1) | D64: =SUM(D34,D44) -> 332 | E64: =SUM(E34,E44) -> 6608 | H64: =SUM($D$34*H34,$D$44*H44)*$A64 -> 1660 | I64: =SUM($D$34*I34,$D$44*I44)*$A64 -> 0 | J64: =SUM($D$34*J34,$D$44*J44)*$A64 -> 0 | K64: =SUM($D$34*K34,$D$44*K44)*$A64 -> 0 | L64: =SUM($D$34*L34,$D$44*L44)*$A64 -> 0 | N64: =SUM(F64:M64) -> 1660
B65: OPA-Contracted LDC Portfolio Total | D65: =SUM(D62:D64) -> 641 | E65: =SUM(E62:E64) -> 1069688
B66: Rate | F66: ='6.0 Rates'!E15 -> 0.0178 | G66: ='6.0 Rates'!E16 -> 0.008 | H66: ='6.0 Rates'!E17 -> 2.9773 | I66: ='6.0 Rates'!E18 -> 0.017 | J66: ='6.0 Rates'!E19 -> 48.7891 | K66: ='6.0 Rates'!E20 -> 37.8268 | L66: ='6.0 Rates'!E21 -> 0
B67: Lost Revenue in 2013 from 2013 | F67: =F62*F66 -> 5610.293 | G67: =G62*G66 -> 1751 | H67: =SUM(H63,H64)*H66 -> 6457.16824 | I67: =SUM(I63,I64)*I66 -> 0 | J67: =J63*J66 -> 0 | K67: 0 | L67: 0 | N67: =SUM(F67:M67) -> 13818.46124
B68: Lost Revenue in 2013 from 2012 | F68: ='8.0 2012LostRev'!F64*F66 -> 5310.5944 | G68: ='8.0 2012LostRev'!G64*G66 -> 1064.7008 | H68: ='8.0 2012LostRev'!H64*H66 -> 1057.53696 | I68: ='8.0 2012LostRev'!I64*I66 -> 0 | J68: ='8.0 2012LostRev'!J64*J66 -> 0 | K68: ='8.0 2012LostRev'!K64*K66 -> 0 | L68: ='8.0 2012LostRev'!L64*L66 -> 0 | N68: =SUM(F68:M68) -> 7432.83216
B69: Lost Revenue in 2013 from 2011 | F69: ='7.0 2011LostRev'!F49*F66 -> 7316.9214 | G69: ='7.0 2011LostRev'!G49*G66 -> 1158.648 | H69: ='7.0 2011LostRev'!H49*H66 -> 0 | I69: ='7.0 2011LostRev'!I49*I66 -> 0 | J69: ='7.0 2011LostRev'!J49*J66 -> 0 | K69: ='7.0 2011LostRev'!K49*K66 -> 0 | L69: ='7.0 2011LostRev'!L49*L66 -> 0 | N69: 8475.5694
B70: Total Lost Revenue in 2013 | F70: =SUM(F67:F69) -> 18237.8088 | G70: =SUM(G67:G69) -> 3974.3488 | H70: 7514.7052 | I70: 0 | J70: 0 | K70: 0 | L70: 0 | N70: =SUM(N67:N69) -> 29726.8628
B71: 2013 Savings Persisting in 2014 | F71: =F62*'11.0 Persistence '!E44 -> 315185 | G71: =G62*'11.0 Persistence '!E44 -> 218875 | H71: =H63*'11.0 Persistence '!E26 -> 218.0571429 | I71: =I63*'11.0 Persistence '!E26 -> 0 | J71: =J63*'11.0 Persistence '!E26 -> 0 | K71: =K63*'11.0 Persistence '!E26 -> 0 | L71: =L63*'11.0 Persistence '!E44 -> 0
B73: Input program details, report status, kWh and kW net savings from OPA Final Annual Report
B74: Input % allocation where applicable based on LDC information
B76: 2013 savings persisting -

Sheet 10.0 2014LostRev
A1: LRAMVA Model version 1.0 © CHEC
A6: Table 11: Allocation of Program Savings Across Rate Classes
G7: 2014
A10: # | B10: Initiative | C10: Results Status | D10: Net Incremental Peak Demand Savings (kW) | E10: Net Incremental Energy Savings (kWh) | F10: Rate Allocation for LRAMVA
D11: 2014 kW Saved | E11: 2014 kWh Saved | F11: ='3.0 LRAMVA Register'!B10 -> Residential | G11: ='3.0 LRAMVA Register'!C10 -> General Service < 50 kW | H11: ='3.0 LRAMVA Register'!D10 -> General Service > 50 to 4999 kW | I11: ='3.0 LRAMVA Register'!E10 -> Unmetered Scattered Load | J11: ='3.0 LRAMVA Register'!F10 -> Sentinel Lighting | K11: ='3.0 LRAMVA Register'!G10 -> Street Lighting | L11: ='3.0 LRAMVA Register'!H10 -> other | M11: ='3.0 LRAMVA Register'!K10 -> other | N11: ='3.0 LRAMVA Register'!L10 -> Total
B12: Consumer Program
A13: 1 | B13: Appliance Retirement | C13: Verified | D13: 2 | E13: 14856 | F13: 1 | N13: =SUM(F13:M13) -> 1
A14: 2 | B14: Appliance Exchange | C14: Verified | D14: 4 | E14: 6650 | F14: 1 | N14: =SUM(F14:M14) -> 1
A15: 3 | B15: HVAC Incentives | C15: Verified | D15: 52 | E15: 96392 | F15: 1 | N15: 1
A16: 4 | B16: Conservation Instant Coupon Booklet | C16: Verified | D16: 8 | E16: 111610 | F16: 1 | N16: 1
A17: 5 | B17: Bi-Annual Retailer Event | C17: Verified | D17: 32 | E17: 485581 | F17: 1 | N17: 1
A18: 6 | B18: Retailer Co-op | C18: Verified | D18: 0 | E18: 0 | F18: 1 | N18: 1
A19: 7 | B19: Residential Demand Response (switch/pstat) | C19: Verified | D19: 28 | E19: 0 | F19: 1 | N19: 1
A20: 8 | B20: Residential Demand Response (IHD) | C20: Verified | F20: 1 | N20: 1
A21: 9 | B21: Residential New Construction | C21: Verified | F21: 1 | N21: 1
B22: Business Program
A23: 10 | B23: Retrofit | C23: Verified | D23: 32 | E23: 178737 | F23: % | G23: 0.2 | H23: 0.8 | N23: =SUM(F23:M23) -> 1
A24: 11 | B24: Direct Install Lighting | C24: Verified | D24: 55 | E24: 220025 | G24: 1 | N24: 1
A25: 12 | B25: Building Commissioning | C25: Verified | N25: 0
A26: 13 | B26: New Construction | C26: Verified | D26: 5 | E26: 24230 | N26: 0
A27: 14 | B27: Energy Audit | C27: Verified | N27: 0
A28: 15 | B28: Small Commercial Demand Response (switch/pstat)* | C28: Verified | D28: 3 | N28: 0
A29: 16 | B29: Small Commercial Demand Response (IHD) | C29: Verified | N29: 0
A30: 17 | B30: Demand Response 3 | C30: Verified | D30: 230 | H30: 1 | N30: 1
B31: Industrial Program
A32: 18 | B32: Process & System Upgrades | C32: Verified | N32: =SUM(F32:M32) -> 0
A33: 19 | B33: Monitoring & Targeting | C33: Verified | N33: 0
A34: 20 | B34: Energy Manager | C34: Verified | N34: 0
A35: 21 | B35: Retrofit | C35: Verified | N35: 0
A36: 22 | B36: Demand Response 3 | C36: Verified | D36: =175 -> 175 | H36: 1 | N36: 1
B37: Home Assistance Program
A38: 23 | B38: Home Assistance Program | C38: Verified | D38: 1 | E38: 8791 | F38: 1 | N38: =SUM(F38:M38) -> 1
B39: Pre-2011 Programs completed in 2011
A40: 24 | B40: Electricity Retrofit Incentive Program | C40: Verified | H40: 1 | N40: =SUM(F40:M40) -> 1
A41: 25 | B41: High Performance New Construction | C41: Verified | H41: 1 | N41: 1
A42: 26 | B42: Toronto Comprehensive | C42: Verified | N42: 0
A43: 27 | B43: Multifamily Energy Efficiency Rebates | C43: Verified | N43: 0
A44: 28 | B44: LDC Custom Programs | C44: Verified | N44: 0
B45: Other
A46: 29 | B46: Program Enabled Savings | C46: Verified | N46: =SUM(F46:M46) -> 0
A47: 30 | B47: Time-of-Use Savings | C47: Verified | D47: 103 | F47: 0.8 | G47: 0.2 | N47: 1
B48: Total kWh | D48: =SUM(D13:D18,D23:D27,D32:D35,D38,D40:D44,D46:D47) -> 294 | E48: =SUM(E13:E21,E23:E29,E32:E35,E38,E40:E44,E46:E47) -> 1146872 | F48: =SUM(E13*F13,E14*F14,E15*F15,E16*F16,E17*F17,E18*F18,E19*F19,E21*F21,E38*F38) -> 723880 | G48: =SUM(E23*G23,E24*G24) -> 255772.4 | H48: =SUM(E23*H23,E30*H30,E36*H36,E40*H40,E41*H41) -> 142989.6 | N48: =SUM(F48:M48) -> 1122642
A49: 12 | B49: Total GS > 50 kW excluding Demand Response 3 | H49: =SUM(D23*H23,D40*H40,D41*H41)*$A49 -> 307.2 | N49: =SUM(F49:M49) -> 307.2
A50: 5 | B50: Demand Response Total (Scenario 1) | D50: =SUM(D19,D28,D30,D36,) -> 436 | E50: =SUM(E30,E36) -> 0 | H50: =SUM(D30*H30,D36*H36)*$A50 -> 2025 | N50: =SUM(F50:M50) -> 2025
B51: OPA-Contracted LDC Portfolio Total | D51: =SUM(D48:D50) -> 730 | E51: =SUM(E48:E50) -> 1146872
B52: Rate | F52: ='6.0 Rates'!F15 -> 0.018 | G52: ='6.0 Rates'!F16 -> 0.0081 | H52: ='6.0 Rates'!F17 -> 3.019 | I52: ='6.0 Rates'!F18 -> 0.0172 | J52: ='6.0 Rates'!F19 -> 49.4721 | K52: ='6.0 Rates'!F20 -> 38.3564 | L52: ='6.0 Rates'!F21 -> 0
B53: Lost Revenue in 2014 from 2014 | F53: =F48*F52 -> 13029.84 | G53: =G48*G52 -> 2071.75644 | H53: =SUM(H49,H50)*H52 -> 7040.9118 | I53: =SUM(I49,I50)*I52 -> 0 | J53: =J49*J52 -> 0 | K53: 0 | L53: 0 | N53: =SUM(F53:M53) -> 22142.50824
B54: Lost Revenue in 2014 from 2013 | F54: ='9.0 2013LostRev'!F71*F52 -> 5673.33 | G54: ='9.0 2013LostRev'!G71*G52 -> 1772.8875 | H54: ='9.0 2013LostRev'!H71*H52 -> 658.3145143 | I54: ='9.0 2013LostRev'!I71*I52 -> 0 | J54: ='9.0 2013LostRev'!J71*J52 -> 0 | K54: ='9.0 2013LostRev'!K71*K52 -> 0 | L54: ='9.0 2013LostRev'!L71*L52 -> 0 | N54: =SUM(F54:M54) -> 8104.532014
B55: Lost Revenue in 2014 from 2012 | F55: ='8.0 2012LostRev'!F65*F52 -> 5370.264 | G55: ='8.0 2012LostRev'!G65*G52 -> 1078.00956 | H55: ='8.0 2012LostRev'!H65*H52 -> 1072.3488 | I55: ='8.0 2012LostRev'!I65*I52 -> 0 | J55: ='8.0 2012LostRev'!J65*J52 -> 0 | K55: ='8.0 2012LostRev'!K65*K52 -> 0 | L55: ='8.0 2012LostRev'!L65*L52 -> 0 | N55: =SUM(F55:M55) -> 7520.62236
B56: Lost Revenue in 2014 from 2011 | F56: ='7.0 2011LostRev'!F50*F52 -> 6165.945 | G56: ='7.0 2011LostRev'!G50*G52 -> 977.60925 | H56: ='7.0 2011LostRev'!H50*H52 -> 0 | I56: ='7.0 2011LostRev'!I50*I52 -> 0 | J56: ='7.0 2011LostRev'!J50*J52 -> 0 | K56: ='7.0 2011LostRev'!K50*K52 -> 0 | L56: ='7.0 2011LostRev'!L50*L52 -> 0 | N56: 7143.55425
B57: Total Lost Revenue in 2014 | F57: =SUM(F53:F56) -> 30239.379 | G57: =SUM(G53:G56) -> 5900.26275 | H57: 8771.575114 | I57: 0 | J57: 0 | K57: 0 | L57: 0 | N57: =SUM(N53:N56) -> 44911.21686
B59: Input program details, report status, kWh and kW net savings from OPA Final Annual Report
B60: Input % allocation where applicable based on LDC information

Sheet 11.0 Persistence
A1: LRAMVA Model version 1.0 © CHEC
A9: Progress Towards CDM Targets
A10: Results are attributed to target using current OPA reporting policies. Energy efficiency resources persist for the duration of the effective useful life. Any upcoming code changes are taken into account. Demand response resources persist for 1 year. Please see methodology tab for more detailed information.
A11: Table 12: Net Peak Demand Savings at the End User Level (MW)
A13: Implementation Period | B13: Annual
B14: 2011 | C14: 2012 | D14: 2013 | E14: 2014
A15: 2011 - Verified | B15: 0.3 | C15: 0.1 | D15: 0.1 | E15: 0.1
A16: 2012 - Verified | B16: 0 | C16: 0.1 | D16: 0.1 | E16: 0.1
A17: 2013 | B17: 0 | C17: 0 | D17: 0.7 | E17: 0.3
A18: 2014
A19: Verified Net Annual Peak Demand Savings Persisting in 2014: | E19: =SUM(E15:E18) -> 0.5
A20: 2011-2014 CDM Capacity Target | E20: 2.5
A21: Verified Portion of Peak Demand Savings Target Achieved in 2014(%): | E21: =E19/E20 -> 0.2
A23: Persistence Factor (MW)
A24: 2011 | C24: =C15/$B$15 -> 0.3333333333 | D24: =D15/$B$15 -> 0.3333333333 | E24: =E15/$B$15 -> 0.3333333333
A25: 2012 | D25: =D16/$C$16 -> 1 | E25: =E16/$C$16 -> 1
A26: 2013 | E26: =E17/D17 -> 0.4285714286
A29: Table 13: Net Energy Savings at the End User Level (GWh)
A31: Implementation Period | B31: Annual | F31: Cumulative
B32: 2011 | C32: 2012 | D32: 2013 | E32: 2014 | F32: 2011-2014
A33: 2011 - Verified | B33: 0.6 | C33: 0.6 | D33: 0.6 | E33: 0.5 | F33: 2.2
A34: 2012 - Verified | B34: 0 | C34: 0.6 | D34: 0.6 | E34: 0.6 | F34: =SUM(B34:E34) -> 1.8
A35: 2013 | B35: 0 | C35: 0.2 | D35: 1.3 | E35: 1.3 | F35: =SUM(B35:E35) -> 2.8
A36: 2014 | E36: 1 | F36: 1
A37: Verified Net Cumulative Energy Savings 2011-2014: | F37: =SUM(F33:F36) -> 7.8
A38: 2011-2014 CDM Energy Target | F38: 9.2
A39: Verified Portion of Cumulative Energy Target Achieved (%): | F39: =F37/F38 -> 0.847826087
A41: Persistence Factor (GWh)
A42: 2011 | C42: =C33/$B$33 -> 1 | D42: =D33/$B$33 -> 1 | E42: =E33/$B$33 -> 0.8333333333
A43: 2012 | D43: =D34/$C$34 -> 1 | E43: =E34/$C$34 -> 1
A44: 2013 | E44: =E35/D35 -> 1

Sheet Sheet1
